Workbook

Sheet Overview
B1: #1 Moving average: | C1: 15
B2: #2 Moving average: | C2: 7
B24: Date | C24: Action | D24: Price
B25: =IFERROR(INDEX(Calculation!$D$2:$D$247,LARGE(IF((IFERROR(Calculation!$M$2:$M$247,"")<>"")+(IFERROR(Calculation!$N$2:$N$247,"")<>""),MATCH(ROW(Calculation!$M$2:$M$247),ROW(Calculation!$M$2:$M$247)),""),ROW(A1))),"") -> 1994-07-01 | C25: =IFERROR(IF(INDEX(Calculation!$M$2:$M$300,MATCH(B25,Calculation!$D$2:$D$300,0))="","Sell","Buy"),"") -> Sell | D25: =IFERROR(INDEX(Calculation!$H$2:$H$300,MATCH(B25,Calculation!$D$2:$D$300,0)),"") -> 458.26
B26: =IFERROR(INDEX(Calculation!$D$2:$D$247,LARGE(IF((IFERROR(Calculation!$M$2:$M$247,"")<>"")+(IFERROR(Calculation!$N$2:$N$247,"")<>""),MATCH(ROW(Calculation!$M$2:$M$247),ROW(Calculation!$M$2:$M$247)),""),ROW(A2))),"") -> 1995-01-03 | C26: =IFERROR(IF(INDEX(Calculation!$M$2:$M$300,MATCH(B26,Calculation!$D$2:$D$300,0))="","Sell","Buy"),"") -> Buy | D26: =IFERROR(INDEX(Calculation!$H$2:$H$300,MATCH(B26,Calculation!$D$2:$D$300,0)),"") -> 470.42
B27: =IFERROR(INDEX(Calculation!$D$2:$D$247,LARGE(IF((IFERROR(Calculation!$M$2:$M$247,"")<>"")+(IFERROR(Calculation!$N$2:$N$247,"")<>""),MATCH(ROW(Calculation!$M$2:$M$247),ROW(Calculation!$M$2:$M$247)),""),ROW(A3))),"") -> 2000-12-01 | C27: =IFERROR(IF(INDEX(Calculation!$M$2:$M$300,MATCH(B27,Calculation!$D$2:$D$300,0))="","Sell","Buy"),"") -> Sell | D27: =IFERROR(INDEX(Calculation!$H$2:$H$300,MATCH(B27,Calculation!$D$2:$D$300,0)),"") -> 1320.28
B28: =IFERROR(INDEX(Calculation!$D$2:$D$247,LARGE(IF((IFERROR(Calculation!$M$2:$M$247,"")<>"")+(IFERROR(Calculation!$N$2:$N$247,"")<>""),MATCH(ROW(Calculation!$M$2:$M$247),ROW(Calculation!$M$2:$M$247)),""),ROW(A4))),"") -> 2003-08-01 | C28: =IFERROR(IF(INDEX(Calculation!$M$2:$M$300,MATCH(B28,Calculation!$D$2:$D$300,0))="","Sell","Buy"),"") -> Buy | D28: =IFERROR(INDEX(Calculation!$H$2:$H$300,MATCH(B28,Calculation!$D$2:$D$300,0)),"") -> 1008.01
B29: =IFERROR(INDEX(Calculation!$D$2:$D$247,LARGE(IF((IFERROR(Calculation!$M$2:$M$247,"")<>"")+(IFERROR(Calculation!$N$2:$N$247,"")<>""),MATCH(ROW(Calculation!$M$2:$M$247),ROW(Calculation!$M$2:$M$247)),""),ROW(A5))),"") -> 2008-03-03 | C29: =IFERROR(IF(INDEX(Calculation!$M$2:$M$300,MATCH(B29,Calculation!$D$2:$D$300,0))="","Sell","Buy"),"") -> Sell | D29: =IFERROR(INDEX(Calculation!$H$2:$H$300,MATCH(B29,Calculation!$D$2:$D$300,0)),"") -> 1322.7
B30: =IFERROR(INDEX(Calculation!$D$2:$D$247,LARGE(IF((IFERROR(Calculation!$M$2:$M$247,"")<>"")+(IFERROR(Calculation!$N$2:$N$247,"")<>""),MATCH(ROW(Calculation!$M$2:$M$247),ROW(Calculation!$M$2:$M$247)),""),ROW(A6))),"") -> 2009-10-01 | C30: =IFERROR(IF(INDEX(Calculation!$M$2:$M$300,MATCH(B30,Calculation!$D$2:$D$300,0))="","Sell","Buy"),"") -> Buy | D30: =IFERROR(INDEX(Calculation!$H$2:$H$300,MATCH(B30,Calculation!$D$2:$D$300,0)),"") -> 1036.19
B31: =IFERROR(INDEX(Calculation!$D$2:$D$247,LARGE(IF((IFERROR(Calculation!$M$2:$M$247,"")<>"")+(IFERROR(Calculation!$N$2:$N$247,"")<>""),MATCH(ROW(Calculation!$M$2:$M$247),ROW(Calculation!$M$2:$M$247)),""),ROW(A7))),"") -> 2011-12-01 | C31: =IFERROR(IF(INDEX(Calculation!$M$2:$M$300,MATCH(B31,Calculation!$D$2:$D$300,0))="","Sell","Buy"),"") -> Sell | D31: =IFERROR(INDEX(Calculation!$H$2:$H$300,MATCH(B31,Calculation!$D$2:$D$300,0)),"") -> 1257.6
B32: =IFERROR(INDEX(Calculation!$D$2:$D$247,LARGE(IF((IFERROR(Calculation!$M$2:$M$247,"")<>"")+(IFERROR(Calculation!$N$2:$N$247,"")<>""),MATCH(ROW(Calculation!$M$2:$M$247),ROW(Calculation!$M$2:$M$247)),""),ROW(A8))),"") -> 2012-04-02 | C32: =IFERROR(IF(INDEX(Calculation!$M$2:$M$300,MATCH(B32,Calculation!$D$2:$D$300,0))="","Sell","Buy"),"") -> Buy | D32: =IFERROR(INDEX(Calculation!$H$2:$H$300,MATCH(B32,Calculation!$D$2:$D$300,0)),"") -> 1397.91
B33: =IFERROR(INDEX(Calculation!$D$2:$D$247,LARGE(IF((IFERROR(Calculation!$M$2:$M$247,"")<>"")+(IFERROR(Calculation!$N$2:$N$247,"")<>""),MATCH(ROW(Calculation!$M$2:$M$247),ROW(Calculation!$M$2:$M$247)),""),ROW(A9))),"") ->  | C33: =IFERROR(IF(INDEX(Calculation!$M$2:$M$300,MATCH(B33,Calculation!$D$2:$D$300,0))="","Sell","Buy"),"") ->  | D33: =IFERROR(INDEX(Calculation!$H$2:$H$300,MATCH(B33,Calculation!$D$2:$D$300,0)),"") -> 
B34: =IFERROR(INDEX(Calculation!$D$2:$D$247,LARGE(IF((IFERROR(Calculation!$M$2:$M$247,"")<>"")+(IFERROR(Calculation!$N$2:$N$247,"")<>""),MATCH(ROW(Calculation!$M$2:$M$247),ROW(Calculation!$M$2:$M$247)),""),ROW(A10))),"") ->  | C34: =IFERROR(IF(INDEX(Calculation!$M$2:$M$300,MATCH(B34,Calculation!$D$2:$D$300,0))="","Sell","Buy"),"") ->  | D34: =IFERROR(INDEX(Calculation!$H$2:$H$300,MATCH(B34,Calculation!$D$2:$D$300,0)),"") -> 
B35: =IFERROR(INDEX(Calculation!$D$2:$D$247,LARGE(IF((IFERROR(Calculation!$M$2:$M$247,"")<>"")+(IFERROR(Calculation!$N$2:$N$247,"")<>""),MATCH(ROW(Calculation!$M$2:$M$247),ROW(Calculation!$M$2:$M$247)),""),ROW(A11))),"") ->  | C35: =IFERROR(IF(INDEX(Calculation!$M$2:$M$300,MATCH(B35,Calculation!$D$2:$D$300,0))="","Sell","Buy"),"") ->  | D35: =IFERROR(INDEX(Calculation!$H$2:$H$300,MATCH(B35,Calculation!$D$2:$D$300,0)),"") -> 
B36: =IFERROR(INDEX(Calculation!$D$2:$D$247,LARGE(IF((IFERROR(Calculation!$M$2:$M$247,"")<>"")+(IFERROR(Calculation!$N$2:$N$247,"")<>""),MATCH(ROW(Calculation!$M$2:$M$247),ROW(Calculation!$M$2:$M$247)),""),ROW(A12))),"") ->  | C36: =IFERROR(IF(INDEX(Calculation!$M$2:$M$300,MATCH(B36,Calculation!$D$2:$D$300,0))="","Sell","Buy"),"") ->  | D36: =IFERROR(INDEX(Calculation!$H$2:$H$300,MATCH(B36,Calculation!$D$2:$D$300,0)),"") -> 
B37: =IFERROR(INDEX(Calculation!$D$2:$D$247,LARGE(IF((IFERROR(Calculation!$M$2:$M$247,"")<>"")+(IFERROR(Calculation!$N$2:$N$247,"")<>""),MATCH(ROW(Calculation!$M$2:$M$247),ROW(Calculation!$M$2:$M$247)),""),ROW(A13))),"") ->  | C37: =IFERROR(IF(INDEX(Calculation!$M$2:$M$300,MATCH(B37,Calculation!$D$2:$D$300,0))="","Sell","Buy"),"") ->  | D37: =IFERROR(INDEX(Calculation!$H$2:$H$300,MATCH(B37,Calculation!$D$2:$D$300,0)),"") -> 
B38: =IFERROR(INDEX(Calculation!$D$2:$D$247,LARGE(IF((IFERROR(Calculation!$M$2:$M$247,"")<>"")+(IFERROR(Calculation!$N$2:$N$247,"")<>""),MATCH(ROW(Calculation!$M$2:$M$247),ROW(Calculation!$M$2:$M$247)),""),ROW(A14))),"") ->  | C38: =IFERROR(IF(INDEX(Calculation!$M$2:$M$300,MATCH(B38,Calculation!$D$2:$D$300,0))="","Sell","Buy"),"") ->  | D38: =IFERROR(INDEX(Calculation!$H$2:$H$300,MATCH(B38,Calculation!$D$2:$D$300,0)),"") -> 
B39: =IFERROR(INDEX(Calculation!$D$2:$D$247,LARGE(IF((IFERROR(Calculation!$M$2:$M$247,"")<>"")+(IFERROR(Calculation!$N$2:$N$247,"")<>""),MATCH(ROW(Calculation!$M$2:$M$247),ROW(Calculation!$M$2:$M$247)),""),ROW(A15))),"") ->  | C39: =IFERROR(IF(INDEX(Calculation!$M$2:$M$300,MATCH(B39,Calculation!$D$2:$D$300,0))="","Sell","Buy"),"") ->  | D39: =IFERROR(INDEX(Calculation!$H$2:$H$300,MATCH(B39,Calculation!$D$2:$D$300,0)),"") -> 
B40: =IFERROR(INDEX(Calculation!$D$2:$D$247,LARGE(IF((IFERROR(Calculation!$M$2:$M$247,"")<>"")+(IFERROR(Calculation!$N$2:$N$247,"")<>""),MATCH(ROW(Calculation!$M$2:$M$247),ROW(Calculation!$M$2:$M$247)),""),ROW(A16))),"") ->  | C40: =IFERROR(IF(INDEX(Calculation!$M$2:$M$300,MATCH(B40,Calculation!$D$2:$D$300,0))="","Sell","Buy"),"") ->  | D40: =IFERROR(INDEX(Calculation!$H$2:$H$300,MATCH(B40,Calculation!$D$2:$D$300,0)),"") -> 
B41: =IFERROR(INDEX(Calculation!$D$2:$D$247,LARGE(IF((IFERROR(Calculation!$M$2:$M$247,"")<>"")+(IFERROR(Calculation!$N$2:$N$247,"")<>""),MATCH(ROW(Calculation!$M$2:$M$247),ROW(Calculation!$M$2:$M$247)),""),ROW(A17))),"") ->  | C41: =IFERROR(IF(INDEX(Calculation!$M$2:$M$300,MATCH(B41,Calculation!$D$2:$D$300,0))="","Sell","Buy"),"") ->  | D41: =IFERROR(INDEX(Calculation!$H$2:$H$300,MATCH(B41,Calculation!$D$2:$D$300,0)),"") -> 
B42: =IFERROR(INDEX(Calculation!$D$2:$D$247,LARGE(IF((IFERROR(Calculation!$M$2:$M$247,"")<>"")+(IFERROR(Calculation!$N$2:$N$247,"")<>""),MATCH(ROW(Calculation!$M$2:$M$247),ROW(Calculation!$M$2:$M$247)),""),ROW(A18))),"") ->  | C42: =IFERROR(IF(INDEX(Calculation!$M$2:$M$300,MATCH(B42,Calculation!$D$2:$D$300,0))="","Sell","Buy"),"") ->  | D42: =IFERROR(INDEX(Calculation!$H$2:$H$300,MATCH(B42,Calculation!$D$2:$D$300,0)),"") -> 
B43: =IFERROR(INDEX(Calculation!$D$2:$D$247,LARGE(IF((IFERROR(Calculation!$M$2:$M$247,"")<>"")+(IFERROR(Calculation!$N$2:$N$247,"")<>""),MATCH(ROW(Calculation!$M$2:$M$247),ROW(Calculation!$M$2:$M$247)),""),ROW(A19))),"") ->  | C43: =IFERROR(IF(INDEX(Calculation!$M$2:$M$300,MATCH(B43,Calculation!$D$2:$D$300,0))="","Sell","Buy"),"") ->  | D43: =IFERROR(INDEX(Calculation!$H$2:$H$300,MATCH(B43,Calculation!$D$2:$D$300,0)),"") -> 
B44: =IFERROR(INDEX(Calculation!$D$2:$D$247,LARGE(IF((IFERROR(Calculation!$M$2:$M$247,"")<>"")+(IFERROR(Calculation!$N$2:$N$247,"")<>""),MATCH(ROW(Calculation!$M$2:$M$247),ROW(Calculation!$M$2:$M$247)),""),ROW(A20))),"") ->  | C44: =IFERROR(IF(INDEX(Calculation!$M$2:$M$300,MATCH(B44,Calculation!$D$2:$D$300,0))="","Sell","Buy"),"") ->  | D44: =IFERROR(INDEX(Calculation!$H$2:$H$300,MATCH(B44,Calculation!$D$2:$D$300,0)),"") -> 
B45: =IFERROR(INDEX(Calculation!$D$2:$D$247,LARGE(IF((IFERROR(Calculation!$M$2:$M$247,"")<>"")+(IFERROR(Calculation!$N$2:$N$247,"")<>""),MATCH(ROW(Calculation!$M$2:$M$247),ROW(Calculation!$M$2:$M$247)),""),ROW(A21))),"") ->  | C45: =IFERROR(IF(INDEX(Calculation!$M$2:$M$300,MATCH(B45,Calculation!$D$2:$D$300,0))="","Sell","Buy"),"") ->  | D45: =IFERROR(INDEX(Calculation!$H$2:$H$300,MATCH(B45,Calculation!$D$2:$D$300,0)),"") -> 
B46: =IFERROR(INDEX(Calculation!$D$2:$D$247,LARGE(IF((IFERROR(Calculation!$M$2:$M$247,"")<>"")+(IFERROR(Calculation!$N$2:$N$247,"")<>""),MATCH(ROW(Calculation!$M$2:$M$247),ROW(Calculation!$M$2:$M$247)),""),ROW(A22))),"") ->  | C46: =IFERROR(IF(INDEX(Calculation!$M$2:$M$300,MATCH(B46,Calculation!$D$2:$D$300,0))="","Sell","Buy"),"") ->  | D46: =IFERROR(INDEX(Calculation!$H$2:$H$300,MATCH(B46,Calculation!$D$2:$D$300,0)),"") -> 
B47: =IFERROR(INDEX(Calculation!$D$2:$D$247,LARGE(IF((IFERROR(Calculation!$M$2:$M$247,"")<>"")+(IFERROR(Calculation!$N$2:$N$247,"")<>""),MATCH(ROW(Calculation!$M$2:$M$247),ROW(Calculation!$M$2:$M$247)),""),ROW(A23))),"") ->  | C47: =IFERROR(IF(INDEX(Calculation!$M$2:$M$300,MATCH(B47,Calculation!$D$2:$D$300,0))="","Sell","Buy"),"") ->  | D47: =IFERROR(INDEX(Calculation!$H$2:$H$300,MATCH(B47,Calculation!$D$2:$D$300,0)),"") -> 
B48: =IFERROR(INDEX(Calculation!$D$2:$D$247,LARGE(IF((IFERROR(Calculation!$M$2:$M$247,"")<>"")+(IFERROR(Calculation!$N$2:$N$247,"")<>""),MATCH(ROW(Calculation!$M$2:$M$247),ROW(Calculation!$M$2:$M$247)),""),ROW(A24))),"") ->  | C48: =IFERROR(IF(INDEX(Calculation!$M$2:$M$300,MATCH(B48,Calculation!$D$2:$D$300,0))="","Sell","Buy"),"") ->  | D48: =IFERROR(INDEX(Calculation!$H$2:$H$300,MATCH(B48,Calculation!$D$2:$D$300,0)),"") -> 
B49: =IFERROR(INDEX(Calculation!$D$2:$D$247,LARGE(IF((IFERROR(Calculation!$M$2:$M$247,"")<>"")+(IFERROR(Calculation!$N$2:$N$247,"")<>""),MATCH(ROW(Calculation!$M$2:$M$247),ROW(Calculation!$M$2:$M$247)),""),ROW(A25))),"") ->  | C49: =IFERROR(IF(INDEX(Calculation!$M$2:$M$300,MATCH(B49,Calculation!$D$2:$D$300,0))="","Sell","Buy"),"") ->  | D49: =IFERROR(INDEX(Calculation!$H$2:$H$300,MATCH(B49,Calculation!$D$2:$D$300,0)),"") -> 
B50: =IFERROR(INDEX(Calculation!$D$2:$D$247,LARGE(IF((IFERROR(Calculation!$M$2:$M$247,"")<>"")+(IFERROR(Calculation!$N$2:$N$247,"")<>""),MATCH(ROW(Calculation!$M$2:$M$247),ROW(Calculation!$M$2:$M$247)),""),ROW(A26))),"") ->  | C50: =IFERROR(IF(INDEX(Calculation!$M$2:$M$300,MATCH(B50,Calculation!$D$2:$D$300,0))="","Sell","Buy"),"") ->  | D50: =IFERROR(INDEX(Calculation!$H$2:$H$300,MATCH(B50,Calculation!$D$2:$D$300,0)),"") -> 
B51: =IFERROR(INDEX(Calculation!$D$2:$D$247,LARGE(IF((IFERROR(Calculation!$M$2:$M$247,"")<>"")+(IFERROR(Calculation!$N$2:$N$247,"")<>""),MATCH(ROW(Calculation!$M$2:$M$247),ROW(Calculation!$M$2:$M$247)),""),ROW(A27))),"") ->  | C51: =IFERROR(IF(INDEX(Calculation!$M$2:$M$300,MATCH(B51,Calculation!$D$2:$D$300,0))="","Sell","Buy"),"") ->  | D51: =IFERROR(INDEX(Calculation!$H$2:$H$300,MATCH(B51,Calculation!$D$2:$D$300,0)),"") -> 
B52: =IFERROR(INDEX(Calculation!$D$2:$D$247,LARGE(IF((IFERROR(Calculation!$M$2:$M$247,"")<>"")+(IFERROR(Calculation!$N$2:$N$247,"")<>""),MATCH(ROW(Calculation!$M$2:$M$247),ROW(Calculation!$M$2:$M$247)),""),ROW(A28))),"") ->  | C52: =IFERROR(IF(INDEX(Calculation!$M$2:$M$300,MATCH(B52,Calculation!$D$2:$D$300,0))="","Sell","Buy"),"") ->  | D52: =IFERROR(INDEX(Calculation!$H$2:$H$300,MATCH(B52,Calculation!$D$2:$D$300,0)),"") -> 
B53: =IFERROR(INDEX(Calculation!$D$2:$D$247,LARGE(IF((IFERROR(Calculation!$M$2:$M$247,"")<>"")+(IFERROR(Calculation!$N$2:$N$247,"")<>""),MATCH(ROW(Calculation!$M$2:$M$247),ROW(Calculation!$M$2:$M$247)),""),ROW(A29))),"") ->  | C53: =IFERROR(IF(INDEX(Calculation!$M$2:$M$300,MATCH(B53,Calculation!$D$2:$D$300,0))="","Sell","Buy"),"") ->  | D53: =IFERROR(INDEX(Calculation!$H$2:$H$300,MATCH(B53,Calculation!$D$2:$D$300,0)),"") -> 
B54: =IFERROR(INDEX(Calculation!$D$2:$D$247,LARGE(IF((IFERROR(Calculation!$M$2:$M$247,"")<>"")+(IFERROR(Calculation!$N$2:$N$247,"")<>""),MATCH(ROW(Calculation!$M$2:$M$247),ROW(Calculation!$M$2:$M$247)),""),ROW(A30))),"") ->  | C54: =IFERROR(IF(INDEX(Calculation!$M$2:$M$300,MATCH(B54,Calculation!$D$2:$D$300,0))="","Sell","Buy"),"") ->  | D54: =IFERROR(INDEX(Calculation!$H$2:$H$300,MATCH(B54,Calculation!$D$2:$D$300,0)),"") -> 
B55: =IFERROR(INDEX(Calculation!$D$2:$D$247,LARGE(IF((IFERROR(Calculation!$M$2:$M$247,"")<>"")+(IFERROR(Calculation!$N$2:$N$247,"")<>""),MATCH(ROW(Calculation!$M$2:$M$247),ROW(Calculation!$M$2:$M$247)),""),ROW(A31))),"") ->  | C55: =IFERROR(IF(INDEX(Calculation!$M$2:$M$300,MATCH(B55,Calculation!$D$2:$D$300,0))="","Sell","Buy"),"") ->  | D55: =IFERROR(INDEX(Calculation!$H$2:$H$300,MATCH(B55,Calculation!$D$2:$D$300,0)),"") -> 
B56: =IFERROR(INDEX(Calculation!$D$2:$D$247,LARGE(IF((IFERROR(Calculation!$M$2:$M$247,"")<>"")+(IFERROR(Calculation!$N$2:$N$247,"")<>""),MATCH(ROW(Calculation!$M$2:$M$247),ROW(Calculation!$M$2:$M$247)),""),ROW(A32))),"") ->  | C56: =IFERROR(IF(INDEX(Calculation!$M$2:$M$300,MATCH(B56,Calculation!$D$2:$D$300,0))="","Sell","Buy"),"") ->  | D56: =IFERROR(INDEX(Calculation!$H$2:$H$300,MATCH(B56,Calculation!$D$2:$D$300,0)),"") -> 
B57: =IFERROR(INDEX(Calculation!$D$2:$D$247,LARGE(IF((IFERROR(Calculation!$M$2:$M$247,"")<>"")+(IFERROR(Calculation!$N$2:$N$247,"")<>""),MATCH(ROW(Calculation!$M$2:$M$247),ROW(Calculation!$M$2:$M$247)),""),ROW(A33))),"") ->  | C57: =IFERROR(IF(INDEX(Calculation!$M$2:$M$300,MATCH(B57,Calculation!$D$2:$D$300,0))="","Sell","Buy"),"") ->  | D57: =IFERROR(INDEX(Calculation!$H$2:$H$300,MATCH(B57,Calculation!$D$2:$D$300,0)),"") -> 
B58: =IFERROR(INDEX(Calculation!$D$2:$D$247,LARGE(IF((IFERROR(Calculation!$M$2:$M$247,"")<>"")+(IFERROR(Calculation!$N$2:$N$247,"")<>""),MATCH(ROW(Calculation!$M$2:$M$247),ROW(Calculation!$M$2:$M$247)),""),ROW(A34))),"") ->  | C58: =IFERROR(IF(INDEX(Calculation!$M$2:$M$300,MATCH(B58,Calculation!$D$2:$D$300,0))="","Sell","Buy"),"") ->  | D58: =IFERROR(INDEX(Calculation!$H$2:$H$300,MATCH(B58,Calculation!$D$2:$D$300,0)),"") -> 
B59: =IFERROR(INDEX(Calculation!$D$2:$D$247,LARGE(IF((IFERROR(Calculation!$M$2:$M$247,"")<>"")+(IFERROR(Calculation!$N$2:$N$247,"")<>""),MATCH(ROW(Calculation!$M$2:$M$247),ROW(Calculation!$M$2:$M$247)),""),ROW(A35))),"") ->  | C59: =IFERROR(IF(INDEX(Calculation!$M$2:$M$300,MATCH(B59,Calculation!$D$2:$D$300,0))="","Sell","Buy"),"") ->  | D59: =IFERROR(INDEX(Calculation!$H$2:$H$300,MATCH(B59,Calculation!$D$2:$D$300,0)),"") -> 
B60: =IFERROR(INDEX(Calculation!$D$2:$D$247,LARGE(IF((IFERROR(Calculation!$M$2:$M$247,"")<>"")+(IFERROR(Calculation!$N$2:$N$247,"")<>""),MATCH(ROW(Calculation!$M$2:$M$247),ROW(Calculation!$M$2:$M$247)),""),ROW(A36))),"") ->  | C60: =IFERROR(IF(INDEX(Calculation!$M$2:$M$300,MATCH(B60,Calculation!$D$2:$D$300,0))="","Sell","Buy"),"") ->  | D60: =IFERROR(INDEX(Calculation!$H$2:$H$300,MATCH(B60,Calculation!$D$2:$D$300,0)),"") -> 
B61: =IFERROR(INDEX(Calculation!$D$2:$D$247,LARGE(IF((IFERROR(Calculation!$M$2:$M$247,"")<>"")+(IFERROR(Calculation!$N$2:$N$247,"")<>""),MATCH(ROW(Calculation!$M$2:$M$247),ROW(Calculation!$M$2:$M$247)),""),ROW(A37))),"") ->  | C61: =IFERROR(IF(INDEX(Calculation!$M$2:$M$300,MATCH(B61,Calculation!$D$2:$D$300,0))="","Sell","Buy"),"") ->  | D61: =IFERROR(INDEX(Calculation!$H$2:$H$300,MATCH(B61,Calculation!$D$2:$D$300,0)),"") -> 
B62: =IFERROR(INDEX(Calculation!$D$2:$D$247,LARGE(IF((IFERROR(Calculation!$M$2:$M$247,"")<>"")+(IFERROR(Calculation!$N$2:$N$247,"")<>""),MATCH(ROW(Calculation!$M$2:$M$247),ROW(Calculation!$M$2:$M$247)),""),ROW(A38))),"") ->  | C62: =IFERROR(IF(INDEX(Calculation!$M$2:$M$300,MATCH(B62,Calculation!$D$2:$D$300,0))="","Sell","Buy"),"") ->  | D62: =IFERROR(INDEX(Calculation!$H$2:$H$300,MATCH(B62,Calculation!$D$2:$D$300,0)),"") -> 
B63: =IFERROR(INDEX(Calculation!$D$2:$D$247,LARGE(IF((IFERROR(Calculation!$M$2:$M$247,"")<>"")+(IFERROR(Calculation!$N$2:$N$247,"")<>""),MATCH(ROW(Calculation!$M$2:$M$247),ROW(Calculation!$M$2:$M$247)),""),ROW(A39))),"") ->  | C63: =IFERROR(IF(INDEX(Calculation!$M$2:$M$300,MATCH(B63,Calculation!$D$2:$D$300,0))="","Sell","Buy"),"") ->  | D63: =IFERROR(INDEX(Calculation!$H$2:$H$300,MATCH(B63,Calculation!$D$2:$D$300,0)),"") -> 
B64: =IFERROR(INDEX(Calculation!$D$2:$D$247,LARGE(IF((IFERROR(Calculation!$M$2:$M$247,"")<>"")+(IFERROR(Calculation!$N$2:$N$247,"")<>""),MATCH(ROW(Calculation!$M$2:$M$247),ROW(Calculation!$M$2:$M$247)),""),ROW(A40))),"") ->  | C64: =IFERROR(IF(INDEX(Calculation!$M$2:$M$300,MATCH(B64,Calculation!$D$2:$D$300,0))="","Sell","Buy"),"") ->  | D64: =IFERROR(INDEX(Calculation!$H$2:$H$300,MATCH(B64,Calculation!$D$2:$D$300,0)),"") -> 
B65: =IFERROR(INDEX(Calculation!$D$2:$D$247,LARGE(IF((IFERROR(Calculation!$M$2:$M$247,"")<>"")+(IFERROR(Calculation!$N$2:$N$247,"")<>""),MATCH(ROW(Calculation!$M$2:$M$247),ROW(Calculation!$M$2:$M$247)),""),ROW(A41))),"") ->  | C65: =IFERROR(IF(INDEX(Calculation!$M$2:$M$300,MATCH(B65,Calculation!$D$2:$D$300,0))="","Sell","Buy"),"") ->  | D65: =IFERROR(INDEX(Calculation!$H$2:$H$300,MATCH(B65,Calculation!$D$2:$D$300,0)),"") -> 
B66: =IFERROR(INDEX(Calculation!$D$2:$D$247,LARGE(IF((IFERROR(Calculation!$M$2:$M$247,"")<>"")+(IFERROR(Calculation!$N$2:$N$247,"")<>""),MATCH(ROW(Calculation!$M$2:$M$247),ROW(Calculation!$M$2:$M$247)),""),ROW(A42))),"") ->  | C66: =IFERROR(IF(INDEX(Calculation!$M$2:$M$300,MATCH(B66,Calculation!$D$2:$D$300,0))="","Sell","Buy"),"") ->  | D66: =IFERROR(INDEX(Calculation!$H$2:$H$300,MATCH(B66,Calculation!$D$2:$D$300,0)),"") -> 
B67: =IFERROR(INDEX(Calculation!$D$2:$D$247,LARGE(IF((IFERROR(Calculation!$M$2:$M$247,"")<>"")+(IFERROR(Calculation!$N$2:$N$247,"")<>""),MATCH(ROW(Calculation!$M$2:$M$247),ROW(Calculation!$M$2:$M$247)),""),ROW(A43))),"") ->  | C67: =IFERROR(IF(INDEX(Calculation!$M$2:$M$300,MATCH(B67,Calculation!$D$2:$D$300,0))="","Sell","Buy"),"") ->  | D67: =IFERROR(INDEX(Calculation!$H$2:$H$300,MATCH(B67,Calculation!$D$2:$D$300,0)),"") -> 
B68: =IFERROR(INDEX(Calculation!$D$2:$D$247,LARGE(IF((IFERROR(Calculation!$M$2:$M$247,"")<>"")+(IFERROR(Calculation!$N$2:$N$247,"")<>""),MATCH(ROW(Calculation!$M$2:$M$247),ROW(Calculation!$M$2:$M$247)),""),ROW(A44))),"") ->  | C68: =IFERROR(IF(INDEX(Calculation!$M$2:$M$300,MATCH(B68,Calculation!$D$2:$D$300,0))="","Sell","Buy"),"") ->  | D68: =IFERROR(INDEX(Calculation!$H$2:$H$300,MATCH(B68,Calculation!$D$2:$D$300,0)),"") -> 
B69: =IFERROR(INDEX(Calculation!$D$2:$D$247,LARGE(IF((IFERROR(Calculation!$M$2:$M$247,"")<>"")+(IFERROR(Calculation!$N$2:$N$247,"")<>""),MATCH(ROW(Calculation!$M$2:$M$247),ROW(Calculation!$M$2:$M$247)),""),ROW(A45))),"") ->  | C69: =IFERROR(IF(INDEX(Calculation!$M$2:$M$300,MATCH(B69,Calculation!$D$2:$D$300,0))="","Sell","Buy"),"") ->  | D69: =IFERROR(INDEX(Calculation!$H$2:$H$300,MATCH(B69,Calculation!$D$2:$D$300,0)),"") -> 

Sheet Calculation
B1: Year | C1: Month | D1: =YahooStockQuotes(1990,9,1,2012,5,31,"m","^GSPC") -> Date | E1: Open | F1: High | G1: Low | H1: Close | I1: Volume | J1: Adj Close | K1: #1 m-avg | L1: #2 m-avg | M1: Buy | N1: Sell
B2: =IF(YEAR(D2)=YEAR(D3),"",YEAR(D2)) ->  | C2: =IF(TEXT(D2,"MMM")=TEXT(D3,"MMM"),"",TEXT(D2,"MMM")) -> maj | D2: 2012-05-01 | E2: 1397.86 | F2: 1415.32 | G2: 1291.98 | H2: 1310.33 | I2: 4158095900 | J2: 1310.33 | K2: =AVERAGE(OFFSET(H2,0,0,Overview!$C$1)) -> 1303.368667 | L2: =AVERAGE(OFFSET(H2,0,0,Overview!$C$2)) -> 1328.48 | M2: =IF((L3<K3)*(L2>K2),K2,"") ->  | N2: =IF((L3>K3)*(L2<K2),K2,"") -> 
B3: =IF(YEAR(D3)=YEAR(D4),"",YEAR(D3)) ->  | C3: apr | D3: 2012-04-02 | E3: 1408.47 | F3: 1422.38 | G3: 1357.38 | H3: 1397.91 | I3: 3916786000 | J3: 1397.91 | K3: =AVERAGE(OFFSET(H3,0,0,Overview!$C$1)) -> 1304.494667 | L3: =AVERAGE(OFFSET(H3,0,0,Overview!$C$2)) -> 1320.332857 | M3: =IF((L4<K4)*(L3>K3),K3,"") -> 1304.494667 | N3: =IF((L4>K4)*(L3<K3),K3,"") -> 
B4: =IF(YEAR(D4)=YEAR(D5),"",YEAR(D4)) ->  | C4: mar | D4: 2012-03-01 | E4: 1365.9 | F4: 1419.15 | G4: 1340.03 | H4: 1408.47 | I4: 3980752200 | J4: 1408.47 | K4: =AVERAGE(OFFSET(H4,0,0,Overview!$C$1)) -> 1297.042 | L4: =AVERAGE(OFFSET(H4,0,0,Overview!$C$2)) -> 1282.262857
C5: feb | D5: 2012-02-01 | E5: 1312.45 | F5: 1378.04 | G5: 1312.45 | H5: 1365.68 | I5: 4143404000 | J5: 1365.68 | K5: =AVERAGE(OFFSET(H5,0,0,Overview!$C$1)) -> 1286.986667 | L5: =AVERAGE(OFFSET(H5,0,0,Overview!$C$2)) -> 1255.18
B6: 2012 | C6: jan | D6: 2012-01-03 | E6: 1258.86 | F6: 1333.47 | G6: 1258.86 | H6: 1312.41 | I6: 4190155500 | J6: 1312.41 | K6: =AVERAGE(OFFSET(H6,0,0,Overview!$C$1)) -> 1274.644667 | L6: =AVERAGE(OFFSET(H6,0,0,Overview!$C$2)) -> 1244.694286
C7: dec | D7: 2011-12-01 | E7: 1246.91 | F7: 1269.37 | G7: 1202.37 | H7: 1257.6 | I7: 3667346600 | J7: 1257.6 | K7: =AVERAGE(OFFSET(H7,0,0,Overview!$C$1)) -> 1266.034667 | L7: =AVERAGE(OFFSET(H7,0,0,Overview!$C$2)) -> 1245.87 | N7: 1266.034667
C8: nov | D8: 2011-11-01 | E8: 1251 | F8: 1277.55 | G8: 1158.66 | H8: 1246.96 | I8: 4288791900 | J8: 1246.96 | K8: =AVERAGE(OFFSET(H8,0,0,Overview!$C$1)) -> 1258.274667 | L8: =AVERAGE(OFFSET(H8,0,0,Overview!$C$2)) -> 1258.384286
C9: okt | D9: 2011-10-03 | E9: 1131.21 | F9: 1292.66 | G9: 1074.77 | H9: 1253.3 | I9: 4874946600 | J9: 1253.3 | K9: =AVERAGE(OFFSET(H9,0,0,Overview!$C$1)) -> 1245.099333 | L9: =AVERAGE(OFFSET(H9,0,0,Overview!$C$2)) -> 1275.048571
C10: sep | D10: 2011-09-01 | E10: 1219.12 | F10: 1229.29 | G10: 1114.22 | H10: 1131.42 | I10: 5104933800 | J10: 1131.42 | K10: =AVERAGE(OFFSET(H10,0,0,Overview!$C$1)) -> 1234.986 | L10: =AVERAGE(OFFSET(H10,0,0,Overview!$C$2)) -> 1285.41
C11: aug | D11: 2011-08-01 | E11: 1292.59 | F11: 1307.38 | G11: 1101.54 | H11: 1218.89 | I11: 4942913400 | J11: 1218.89 | K11: =AVERAGE(OFFSET(H11,0,0,Overview!$C$1)) -> 1228.272 | L11: =AVERAGE(OFFSET(H11,0,0,Overview!$C$2)) -> 1313.381429
C12: jul | D12: 2011-07-01 | E12: 1320.64 | F12: 1356.48 | G12: 1282.86 | H12: 1292.28 | I12: 4308168000 | J12: 1292.28 | K12: =AVERAGE(OFFSET(H12,0,0,Overview!$C$1)) -> 1219.64 | L12: =AVERAGE(OFFSET(H12,0,0,Overview!$C$2)) -> 1322.985714
C13: jun | D13: 2011-06-01 | E13: 1345.2 | F13: 1345.2 | G13: 1258.07 | H13: 1320.64 | I13: 4105601300 | J13: 1320.64 | K13: =AVERAGE(OFFSET(H13,0,0,Overview!$C$1)) -> 1212.600667 | L13: =AVERAGE(OFFSET(H13,0,0,Overview!$C$2)) -> 1318.037143
C14: maj | D14: 2011-05-02 | E14: 1365.21 | F14: 1370.58 | G14: 1311.8 | H14: 1345.2 | I14: 4114534200 | J14: 1345.2 | K14: =AVERAGE(OFFSET(H14,0,0,Overview!$C$1)) -> 1202.52 | L14: =AVERAGE(OFFSET(H14,0,0,Overview!$C$2)) -> 1298.024286
C15: apr | D15: 2011-04-01 | E15: 1329.48 | F15: 1364.56 | G15: 1294.7 | H15: 1363.61 | I15: 4042194000 | J15: 1363.61 | K15: =AVERAGE(OFFSET(H15,0,0,Overview!$C$1)) -> 1186.472667 | L15: =AVERAGE(OFFSET(H15,0,0,Overview!$C$2)) -> 1274.89
C16: mar | D16: 2011-03-01 | E16: 1328.64 | F16: 1332.28 | G16: 1249.05 | H16: 1325.83 | I16: 4046691700 | J16: 1325.83 | K16: =AVERAGE(OFFSET(H16,0,0,Overview!$C$1)) -> 1167.156667 | L16: =AVERAGE(OFFSET(H16,0,0,Overview!$C$2)) -> 1243.117143
C17: feb | D17: 2011-02-01 | E17: 1289.14 | F17: 1344.07 | G17: 1289.14 | H17: 1327.22 | I17: 3225297300 | J17: 1327.22 | K17: =AVERAGE(OFFSET(H17,0,0,Overview!$C$1)) -> 1153.108 | L17: =AVERAGE(OFFSET(H17,0,0,Overview!$C$2)) -> 1203.617143
B18: 2011 | C18: jan | D18: 2011-01-03 | E18: 1257.62 | F18: 1302.67 | G18: 1257.62 | H18: 1286.12 | I18: 4816605000 | J18: 1286.12 | K18: =AVERAGE(OFFSET(H18,0,0,Overview!$C$1)) -> 1137.668667 | L18: =AVERAGE(OFFSET(H18,0,0,Overview!$C$2)) -> 1171.385714
C19: dec | D19: 2010-12-01 | E19: 1186.6 | F19: 1262.6 | G19: 1186.6 | H19: 1257.64 | I19: 3762922700 | J19: 1257.64 | K19: =AVERAGE(OFFSET(H19,0,0,Overview!$C$1)) -> 1121.006667 | L19: =AVERAGE(OFFSET(H19,0,0,Overview!$C$2)) -> 1134.898571
C20: nov | D20: 2010-11-01 | E20: 1185.71 | F20: 1227.08 | G20: 1173 | H20: 1180.55 | I20: 4354084200 | J20: 1180.55 | K20: =AVERAGE(OFFSET(H20,0,0,Overview!$C$1)) -> 1107.636 | L20: =AVERAGE(OFFSET(H20,0,0,Overview!$C$2)) -> 1110.865714
C21: okt | D21: 2010-10-01 | E21: 1143.49 | F21: 1196.14 | G21: 1131.87 | H21: 1183.26 | I21: 4432102300 | J21: 1183.26 | K21: =AVERAGE(OFFSET(H21,0,0,Overview!$C$1)) -> 1096.974 | L21: =AVERAGE(OFFSET(H21,0,0,Overview!$C$2)) -> 1111.742857
C22: sep | D22: 2010-09-01 | E22: 1049.72 | F22: 1157.16 | G22: 1049.72 | H22: 1141.2 | I22: 3993981400 | J22: 1141.2 | K22: =AVERAGE(OFFSET(H22,0,0,Overview!$C$1)) -> 1083.922 | L22: =AVERAGE(OFFSET(H22,0,0,Overview!$C$2)) -> 1109.767143
C23: aug | D23: 2010-08-02 | E23: 1107.53 | F23: 1129.24 | G23: 1039.7 | H23: 1049.33 | I23: 4044967700 | J23: 1049.33 | K23: =AVERAGE(OFFSET(H23,0,0,Overview!$C$1)) -> 1069.13 | L23: =AVERAGE(OFFSET(H23,0,0,Overview!$C$2)) -> 1104.522857
C24: jul | D24: 2010-07-01 | E24: 1031.1 | F24: 1120.95 | G24: 1010.91 | H24: 1101.6 | I24: 4704026600 | J24: 1101.6 | K24: =AVERAGE(OFFSET(H24,0,0,Overview!$C$1)) -> 1060.450667 | L24: =AVERAGE(OFFSET(H24,0,0,Overview!$C$2)) -> 1108.028571
C25: jun | D25: 2010-06-01 | E25: 1087.3 | F25: 1131.23 | G25: 1028.33 | H25: 1030.71 | I25: 5235174000 | J25: 1030.71 | K25: =AVERAGE(OFFSET(H25,0,0,Overview!$C$1)) -> 1045.198 | L25: =AVERAGE(OFFSET(H25,0,0,Overview!$C$2)) -> 1109.957143
C26: maj | D26: 2010-05-03 | E26: 1188.58 | F26: 1205.13 | G26: 1040.78 | H26: 1089.41 | I26: 6626699400 | J26: 1089.41 | K26: =AVERAGE(OFFSET(H26,0,0,Overview!$C$1)) -> 1029.675333 | L26: =AVERAGE(OFFSET(H26,0,0,Overview!$C$2)) -> 1119.231429
C27: apr | D27: 2010-04-01 | E27: 1171.23 | F27: 1219.8 | G27: 1170.69 | H27: 1186.69 | I27: 5847150900 | J27: 1186.69 | K27: =AVERAGE(OFFSET(H27,0,0,Overview!$C$1)) -> 1006.054 | L27: =AVERAGE(OFFSET(H27,0,0,Overview!$C$2)) -> 1111.628571
C28: mar | D28: 2010-03-01 | E28: 1105.36 | F28: 1180.69 | G28: 1105.36 | H28: 1169.43 | I28: 4702951700 | J28: 1169.43 | K28: =AVERAGE(OFFSET(H28,0,0,Overview!$C$1)) -> 982 | L28: =AVERAGE(OFFSET(H28,0,0,Overview!$C$2)) -> 1093.112857
C29: feb | D29: 2010-02-01 | E29: 1073.89 | F29: 1112.42 | G29: 1044.5 | H29: 1104.49 | I29: 4658238400 | J29: 1104.49 | K29: =AVERAGE(OFFSET(H29,0,0,Overview!$C$1)) -> 964.2546667 | L29: =AVERAGE(OFFSET(H29,0,0,Overview!$C$2)) -> 1071.854286
B30: 2010 | C30: jan | D30: 2010-01-04 | E30: 1116.56 | F30: 1150.45 | G30: 1071.59 | H30: 1073.87 | I30: 5071601500 | J30: 1073.87 | K30: =AVERAGE(OFFSET(H30,0,0,Overview!$C$1)) -> 950.3713333 | L30: =AVERAGE(OFFSET(H30,0,0,Overview!$C$2)) -> 1055.138571
C31: dec | D31: 2009-12-01 | E31: 1098.89 | F31: 1130.38 | G31: 1085.89 | H31: 1115.1 | I31: 4163287200 | J31: 1115.1 | K31: =AVERAGE(OFFSET(H31,0,0,Overview!$C$1)) -> 943.3633333 | L31: =AVERAGE(OFFSET(H31,0,0,Overview!$C$2)) -> 1033.06
C32: nov | D32: 2009-11-02 | E32: 1036.18 | F32: 1113.69 | G32: 1029.38 | H32: 1095.63 | I32: 4443852500 | J32: 1095.63 | K32: =AVERAGE(OFFSET(H32,0,0,Overview!$C$1)) -> 946.7806667 | L32: =AVERAGE(OFFSET(H32,0,0,Overview!$C$2)) -> 1005.065714
C33: okt | D33: 2009-10-01 | E33: 1054.91 | F33: 1101.36 | G33: 1019.95 | H33: 1036.19 | I33: 5451064000 | J33: 1036.19 | K33: =AVERAGE(OFFSET(H33,0,0,Overview!$C$1)) -> 959.2606667 | L33: =AVERAGE(OFFSET(H33,0,0,Overview!$C$2)) -> 973.2342857 | M33: 959.2606667
C34: sep | D34: 2009-09-01 | E34: 1019.52 | F34: 1080.15 | G34: 991.97 | H34: 1057.08 | I34: 5633064200 | J34: 1057.08 | K34: =AVERAGE(OFFSET(H34,0,0,Overview!$C$1)) -> 974.6733333 | L34: =AVERAGE(OFFSET(H34,0,0,Overview!$C$2)) -> 939.1885714
C35: aug | D35: 2009-08-03 | E35: 990.22 | F35: 1039.47 | G35: 978.51 | H35: 1020.62 | I35: 5764944200 | J35: 1020.62 | K35: =AVERAGE(OFFSET(H35,0,0,Overview!$C$1)) -> 989.5346667 | L35: =AVERAGE(OFFSET(H35,0,0,Overview!$C$2)) -> 893.19
C36: jul | D36: 2009-07-01 | E36: 920.82 | F36: 996.68 | G36: 869.32 | H36: 987.48 | I36: 5080675400 | J36: 987.48 | K36: =AVERAGE(OFFSET(H36,0,0,Overview!$C$1)) -> 1014.852 | L36: =AVERAGE(OFFSET(H36,0,0,Overview!$C$2)) -> 865.37
C37: jun | D37: 2009-06-01 | E37: 923.26 | F37: 956.23 | G37: 888.86 | H37: 919.32 | I37: 5330941800 | J37: 919.32 | K37: =AVERAGE(OFFSET(H37,0,0,Overview!$C$1)) -> 1041.392667 | L37: =AVERAGE(OFFSET(H37,0,0,Overview!$C$2)) -> 853.3371429
C38: maj | D38: 2009-05-01 | E38: 872.74 | F38: 930.17 | G38: 866.1 | H38: 919.14 | I38: 6883268000 | J38: 919.14 | K38: =AVERAGE(OFFSET(H38,0,0,Overview!$C$1)) -> 1068.284667 | L38: =AVERAGE(OFFSET(H38,0,0,Overview!$C$2)) -> 850.04
C39: apr | D39: 2009-04-01 | E39: 793.59 | F39: 888.7 | G39: 783.32 | H39: 872.81 | I39: 6938945600 | J39: 872.81 | K39: =AVERAGE(OFFSET(H39,0,0,Overview!$C$1)) -> 1095.717333 | L39: =AVERAGE(OFFSET(H39,0,0,Overview!$C$2)) -> 857.1271429
C40: mar | D40: 2009-03-02 | E40: 729.57 | F40: 832.98 | G40: 666.79 | H40: 797.87 | I40: 7633306300 | J40: 797.87 | K40: =AVERAGE(OFFSET(H40,0,0,Overview!$C$1)) -> 1129.433333 | L40: =AVERAGE(OFFSET(H40,0,0,Overview!$C$2)) -> 899.0628571
C41: feb | D41: 2009-02-02 | E41: 823.09 | F41: 875.01 | G41: 734.52 | H41: 735.09 | I41: 7022036200 | J41: 735.09 | K41: =AVERAGE(OFFSET(H41,0,0,Overview!$C$1)) -> 1174.132667 | L41: =AVERAGE(OFFSET(H41,0,0,Overview!$C$2)) -> 968.3428571
B42: 2009 | C42: jan | D42: 2009-01-02 | E42: 902.99 | F42: 943.85 | G42: 804.3 | H42: 825.88 | I42: 5844561500 | J42: 825.88 | K42: =AVERAGE(OFFSET(H42,0,0,Overview!$C$1)) -> 1223.869333 | L42: =AVERAGE(OFFSET(H42,0,0,Overview!$C$2)) -> 1044.384286
C43: dec | D43: 2008-12-01 | E43: 888.61 | F43: 918.85 | G43: 815.69 | H43: 903.25 | I43: 5320791300 | J43: 903.25 | K43: =AVERAGE(OFFSET(H43,0,0,Overview!$C$1)) -> 1272.102667 | L43: =AVERAGE(OFFSET(H43,0,0,Overview!$C$2)) -> 1109.258571
C44: nov | D44: 2008-11-03 | E44: 968.67 | F44: 1007.51 | G44: 741.02 | H44: 896.24 | I44: 6231635200 | J44: 896.24 | K44: =AVERAGE(OFFSET(H44,0,0,Overview!$C$1)) -> 1313.669333 | L44: =AVERAGE(OFFSET(H44,0,0,Overview!$C$2)) -> 1180.277143
C45: okt | D45: 2008-10-01 | E45: 1164.17 | F45: 1167.03 | G45: 839.8 | H45: 968.75 | I45: 7226593900 | J45: 968.75 | K45: =AVERAGE(OFFSET(H45,0,0,Overview!$C$1)) -> 1352.186 | L45: =AVERAGE(OFFSET(H45,0,0,Overview!$C$2)) -> 1250.184286
C46: sep | D46: 2008-09-02 | E46: 1287.83 | F46: 1303.04 | G46: 1106.42 | H46: 1166.36 | I46: 6900428500 | J46: 1166.36 | K46: =AVERAGE(OFFSET(H46,0,0,Overview!$C$1)) -> 1384.620667 | L46: =AVERAGE(OFFSET(H46,0,0,Overview!$C$2)) -> 1300.748571
C47: aug | D47: 2008-08-01 | E47: 1269.42 | F47: 1313.15 | G47: 1247.45 | H47: 1282.83 | I47: 4264482300 | J47: 1282.83 | K47: =AVERAGE(OFFSET(H47,0,0,Overview!$C$1)) -> 1407.086667 | L47: =AVERAGE(OFFSET(H47,0,0,Overview!$C$2)) -> 1324.215714
C48: jul | D48: 2008-07-01 | E48: 1276.69 | F48: 1292.17 | G48: 1200.44 | H48: 1267.38 | I48: 5923937200 | J48: 1267.38 | K48: =AVERAGE(OFFSET(H48,0,0,Overview!$C$1)) -> 1423.606 | L48: =AVERAGE(OFFSET(H48,0,0,Overview!$C$2)) -> 1337.89
C49: jun | D49: 2008-06-02 | E49: 1399.62 | F49: 1404.05 | G49: 1272 | H49: 1280 | I49: 4840303300 | J49: 1280 | K49: =AVERAGE(OFFSET(H49,0,0,Overview!$C$1)) -> 1437.938667 | L49: =AVERAGE(OFFSET(H49,0,0,Overview!$C$2)) -> 1366.601429
C50: maj | D50: 2008-05-01 | E50: 1385.97 | F50: 1440.24 | G50: 1373.07 | H50: 1400.38 | I50: 4039814700 | J50: 1400.38 | K50: =AVERAGE(OFFSET(H50,0,0,Overview!$C$1)) -> 1447.329333 | L50: =AVERAGE(OFFSET(H50,0,0,Overview!$C$2)) -> 1395.335714
C51: apr | D51: 2008-04-01 | E51: 1326.41 | F51: 1404.57 | G51: 1324.35 | H51: 1385.59 | I51: 4113069000 | J51: 1385.59 | K51: =AVERAGE(OFFSET(H51,0,0,Overview!$C$1)) -> 1447.758667 | L51: =AVERAGE(OFFSET(H51,0,0,Overview!$C$2)) -> 1416.621429
C52: mar | D52: 2008-03-03 | E52: 1330.45 | F52: 1359.68 | G52: 1256.98 | H52: 1322.7 | I52: 4661172000 | J52: 1322.7 | K52: =AVERAGE(OFFSET(H52,0,0,Overview!$C$1)) -> 1451.268667 | L52: =AVERAGE(OFFSET(H52,0,0,Overview!$C$2)) -> 1436.787143 | N52: 1451.268667
C53: feb | D53: 2008-02-01 | E53: 1378.6 | F53: 1396.02 | G53: 1316.75 | H53: 1330.63 | I53: 4148143000 | J53: 1330.63 | K53: =AVERAGE(OFFSET(H53,0,0,Overview!$C$1)) -> 1457.642 | L53: =AVERAGE(OFFSET(H53,0,0,Overview!$C$2)) -> 1458.4
B54: 2008 | C54: jan | D54: 2008-01-02 | E54: 1467.97 | F54: 1471.77 | G54: 1270.05 | H54: 1378.55 | I54: 4925982300 | J54: 1378.55 | K54: =AVERAGE(OFFSET(H54,0,0,Overview!$C$1)) -> 1462.308667 | L54: =AVERAGE(OFFSET(H54,0,0,Overview!$C$2)) -> 1476.205714
C55: dec | D55: 2007-12-03 | E55: 1479.63 | F55: 1523.57 | G55: 1435.65 | H55: 1468.36 | I55: 3363127500 | J55: 1468.36 | K55: =AVERAGE(OFFSET(H55,0,0,Overview!$C$1)) -> 1462.268 | L55: =AVERAGE(OFFSET(H55,0,0,Overview!$C$2)) -> 1494.034286
C56: nov | D56: 2007-11-01 | E56: 1545.79 | F56: 1545.79 | G56: 1406.1 | H56: 1481.14 | I56: 4317578500 | J56: 1481.14 | K56: =AVERAGE(OFFSET(H56,0,0,Overview!$C$1)) -> 1453.434 | L56: =AVERAGE(OFFSET(H56,0,0,Overview!$C$2)) -> 1502.928571
C57: okt | D57: 2007-10-01 | E57: 1527.29 | F57: 1576.09 | G57: 1489.56 | H57: 1549.38 | I57: 3477202100 | J57: 1549.38 | K57: =AVERAGE(OFFSET(H57,0,0,Overview!$C$1)) -> 1441.612667 | L57: =AVERAGE(OFFSET(H57,0,0,Overview!$C$2)) -> 1503.104286
C58: sep | D58: 2007-09-04 | E58: 1473.96 | F58: 1538.74 | G58: 1439.29 | H58: 1526.75 | I58: 3196581500 | J58: 1526.75 | K58: =AVERAGE(OFFSET(H58,0,0,Overview!$C$1)) -> 1423.431333 | L58: =AVERAGE(OFFSET(H58,0,0,Overview!$C$2)) -> 1484.744286
C59: aug | D59: 2007-08-01 | E59: 1455.18 | F59: 1503.89 | G59: 1370.6 | H59: 1473.99 | I59: 4091885600 | J59: 1473.99 | K59: =AVERAGE(OFFSET(H59,0,0,Overview!$C$1)) -> 1406.328 | L59: =AVERAGE(OFFSET(H59,0,0,Overview!$C$2)) -> 1467.611429
C60: jul | D60: 2007-07-02 | E60: 1504.66 | F60: 1555.9 | G60: 1454.25 | H60: 1455.27 | I60: 3564664200 | J60: 1455.27 | K60: =AVERAGE(OFFSET(H60,0,0,Overview!$C$1)) -> 1392.734667 | L60: =AVERAGE(OFFSET(H60,0,0,Overview!$C$2)) -> 1462.504286
C61: jun | D61: 2007-06-01 | E61: 1530.62 | F61: 1540.56 | G61: 1484.18 | H61: 1503.35 | I61: 3261343300 | J61: 1503.35 | K61: =AVERAGE(OFFSET(H61,0,0,Overview!$C$1)) -> 1383.090667 | L61: =AVERAGE(OFFSET(H61,0,0,Overview!$C$2)) -> 1457.222857
C62: maj | D62: 2007-05-01 | E62: 1482.37 | F62: 1535.56 | G62: 1476.7 | H62: 1530.62 | I62: 3104253600 | J62: 1530.62 | K62: =AVERAGE(OFFSET(H62,0,0,Overview!$C$1)) -> 1369.192 | L62: =AVERAGE(OFFSET(H62,0,0,Overview!$C$2)) -> 1442.548571
C63: apr | D63: 2007-04-02 | E63: 1420.83 | F63: 1498.02 | G63: 1416.37 | H63: 1482.37 | I63: 3006294500 | J63: 1482.37 | K63: =AVERAGE(OFFSET(H63,0,0,Overview!$C$1)) -> 1352.528 | L63: =AVERAGE(OFFSET(H63,0,0,Overview!$C$2)) -> 1420.737143
C64: mar | D64: 2007-03-01 | E64: 1406.8 | F64: 1438.89 | G64: 1363.98 | H64: 1420.86 | I64: 3205736800 | J64: 1420.86 | K64: =AVERAGE(OFFSET(H64,0,0,Overview!$C$1)) -> 1339.042 | L64: =AVERAGE(OFFSET(H64,0,0,Overview!$C$2)) -> 1399.805714
C65: feb | D65: 2007-02-01 | E65: 1437.9 | F65: 1461.57 | G65: 1389.42 | H65: 1406.82 | I65: 2935275700 | J65: 1406.82 | K65: =AVERAGE(OFFSET(H65,0,0,Overview!$C$1)) -> 1327.537333 | L65: =AVERAGE(OFFSET(H65,0,0,Overview!$C$2)) -> 1383.085714
B66: 2007 | C66: =IF(TEXT(D66,"MMM")=TEXT(D67,"MMM"),"",TEXT(D66,"MMM")) -> jan | D66: 2007-01-03 | E66: 1418.03 | F66: 1441.61 | G66: 1403.97 | H66: 1438.24 | I66: 2983144500 | J66: 1438.24 | K66: =AVERAGE(OFFSET(H66,0,0,Overview!$C$1)) -> 1317.048 | L66: =AVERAGE(OFFSET(H66,0,0,Overview!$C$2)) -> 1364.491429
C67: dec | D67: 2006-12-01 | E67: 1400.63 | F67: 1431.81 | G67: 1385.93 | H67: 1418.3 | I67: 2462849000 | J67: 1418.3 | K67: =AVERAGE(OFFSET(H67,0,0,Overview!$C$1)) -> 1301.632667 | L67: =AVERAGE(OFFSET(H67,0,0,Overview!$C$2)) -> 1340.485714 | M67: =IF((L68<K68)*(L67>K67),K67,"") ->  | N67: =IF((L68>K68)*(L67<K67),K67,"") -> 
B68: =IF(YEAR(D68)=YEAR(D69),"",YEAR(D68)) ->  | C68: nov | D68: 2006-11-01 | E68: 1377.76 | F68: 1407.89 | G68: 1360.98 | H68: 1400.63 | I68: 2826198000 | J68: 1400.63 | K68: =AVERAGE(OFFSET(H68,0,0,Overview!$C$1)) -> 1289 | L68: =AVERAGE(OFFSET(H68,0,0,Overview!$C$2)) -> 1319.312857
C69: okt | D69: 2006-10-02 | E69: 1335.82 | F69: 1389.45 | G69: 1327.1 | H69: 1377.94 | I69: 2708938600 | J69: 1377.94 | K69: =AVERAGE(OFFSET(H69,0,0,Overview!$C$1)) -> 1276.98 | L69: =AVERAGE(OFFSET(H69,0,0,Overview!$C$2)) -> 1306.452857
C70: sep | D70: 2006-09-01 | E70: 1303.8 | F70: 1340.28 | G70: 1290.93 | H70: 1335.85 | I70: 2563743500 | J70: 1335.85 | K70: =AVERAGE(OFFSET(H70,0,0,Overview!$C$1)) -> 1267.396 | L70: =AVERAGE(OFFSET(H70,0,0,Overview!$C$2)) -> 1294.585714
C71: aug | D71: 2006-08-01 | E71: 1278.53 | F71: 1306.74 | G71: 1261.3 | H71: 1303.82 | I71: 2280876500 | J71: 1303.82 | K71: =AVERAGE(OFFSET(H71,0,0,Overview!$C$1)) -> 1257.761333 | L71: =AVERAGE(OFFSET(H71,0,0,Overview!$C$2)) -> 1286.701429
C72: jul | D72: 2006-07-03 | E72: 1270.06 | F72: 1280.42 | G72: 1224.54 | H72: 1276.66 | I72: 2440476000 | J72: 1276.66 | K72: =AVERAGE(OFFSET(H72,0,0,Overview!$C$1)) -> 1250.273333 | L72: =AVERAGE(OFFSET(H72,0,0,Overview!$C$2)) -> 1283.31
C73: jun | D73: 2006-06-01 | E73: 1270.05 | F73: 1290.68 | G73: 1219.29 | H73: 1270.2 | I73: 2632855400 | J73: 1270.2 | K73: =AVERAGE(OFFSET(H73,0,0,Overview!$C$1)) -> 1242.286 | L73: =AVERAGE(OFFSET(H73,0,0,Overview!$C$2)) -> 1279.257143
C74: maj | D74: 2006-05-01 | E74: 1310.61 | F74: 1326.7 | G74: 1245.34 | H74: 1270.09 | I74: 2591135900 | J74: 1270.09 | K74: =AVERAGE(OFFSET(H74,0,0,Overview!$C$1)) -> 1236.312 | L74: =AVERAGE(OFFSET(H74,0,0,Overview!$C$2)) -> 1276.297143
C75: apr | D75: 2006-04-03 | E75: 1302.88 | F75: 1318.16 | G75: 1280.74 | H75: 1310.61 | I75: 2406755200 | J75: 1310.61 | K75: =AVERAGE(OFFSET(H75,0,0,Overview!$C$1)) -> 1231.879333 | L75: =AVERAGE(OFFSET(H75,0,0,Overview!$C$2)) -> 1267.285714
C76: mar | D76: 2006-03-01 | E76: 1280.66 | F76: 1310.88 | G76: 1268.42 | H76: 1294.87 | I76: 2310510800 | J76: 1294.87 | K76: =AVERAGE(OFFSET(H76,0,0,Overview!$C$1)) -> 1223.256667 | L76: =AVERAGE(OFFSET(H76,0,0,Overview!$C$2)) -> 1255.6
C77: feb | D77: 2006-02-01 | E77: 1280.08 | F77: 1297.57 | G77: 1253.61 | H77: 1280.66 | I77: 2380568400 | J77: 1280.66 | K77: =AVERAGE(OFFSET(H77,0,0,Overview!$C$1)) -> 1217.726667 | L77: =AVERAGE(OFFSET(H77,0,0,Overview!$C$2)) -> 1244.951429
B78: 2006 | C78: jan | D78: 2006-01-03 | E78: 1248.29 | F78: 1294.9 | G78: 1245.74 | H78: 1280.08 | I78: 2595998000 | J78: 1280.08 | K78: =AVERAGE(OFFSET(H78,0,0,Overview!$C$1)) -> 1210.604 | L78: =AVERAGE(OFFSET(H78,0,0,Overview!$C$2)) -> 1238.311429
C79: dec | D79: 2005-12-01 | E79: 1249.48 | F79: 1275.8 | G79: 1246.59 | H79: 1248.29 | I79: 2057125200 | J79: 1248.29 | K79: =AVERAGE(OFFSET(H79,0,0,Overview!$C$1)) -> 1200.612 | L79: =AVERAGE(OFFSET(H79,0,0,Overview!$C$2)) -> 1225.632857
C80: nov | D80: 2005-11-01 | E80: 1207.01 | F80: 1270.64 | G80: 1201.07 | H80: 1249.48 | I80: 2260836100 | J80: 1249.48 | K80: =AVERAGE(OFFSET(H80,0,0,Overview!$C$1)) -> 1191.698 | L80: =AVERAGE(OFFSET(H80,0,0,Overview!$C$2)) -> 1217.52
C81: okt | D81: 2005-10-03 | E81: 1228.81 | F81: 1233.34 | G81: 1168.2 | H81: 1207.01 | I81: 2493393300 | J81: 1207.01 | K81: =AVERAGE(OFFSET(H81,0,0,Overview!$C$1)) -> 1182.015333 | L81: =AVERAGE(OFFSET(H81,0,0,Overview!$C$2)) -> 1204.287143
C82: sep | D82: 2005-09-01 | E82: 1220.33 | F82: 1243.13 | G82: 1205.35 | H82: 1228.81 | I82: 2232144200 | J82: 1228.81 | K82: =AVERAGE(OFFSET(H82,0,0,Overview!$C$1)) -> 1174.996 | L82: =AVERAGE(OFFSET(H82,0,0,Overview!$C$2)) -> 1200.512857
C83: aug | D83: 2005-08-01 | E83: 1234.18 | F83: 1245.86 | G83: 1201.07 | H83: 1220.33 | I83: 1930243400 | J83: 1220.33 | K83: =AVERAGE(OFFSET(H83,0,0,Overview!$C$1)) -> 1169.131333 | L83: =AVERAGE(OFFSET(H83,0,0,Overview!$C$2)) -> 1196.911429
C84: jul | D84: 2005-07-01 | E84: 1191.33 | F84: 1245.15 | G84: 1183.55 | H84: 1234.18 | I84: 1962713500 | J84: 1234.18 | K84: =AVERAGE(OFFSET(H84,0,0,Overview!$C$1)) -> 1162.488 | L84: =AVERAGE(OFFSET(H84,0,0,Overview!$C$2)) -> 1191.331429
C85: jun | D85: 2005-06-01 | E85: 1191.5 | F85: 1219.59 | G85: 1188.3 | H85: 1191.33 | I85: 1929251300 | J85: 1191.33 | K85: =AVERAGE(OFFSET(H85,0,0,Overview!$C$1)) -> 1154.029333 | L85: =AVERAGE(OFFSET(H85,0,0,Overview!$C$2)) -> 1188.151429
C86: maj | D86: 2005-05-02 | E86: 1156.85 | F86: 1199.56 | G86: 1146.18 | H86: 1191.5 | I86: 1960127100 | J86: 1191.5 | K86: =AVERAGE(OFFSET(H86,0,0,Overview!$C$1)) -> 1149.688 | L86: =AVERAGE(OFFSET(H86,0,0,Overview!$C$2)) -> 1185.65
C87: apr | D87: 2005-04-01 | E87: 1180.59 | F87: 1191.88 | G87: 1136.15 | H87: 1156.85 | I87: 2180315700 | J87: 1156.85 | K87: =AVERAGE(OFFSET(H87,0,0,Overview!$C$1)) -> 1146.584 | L87: =AVERAGE(OFFSET(H87,0,0,Overview!$C$2)) -> 1176.892857
C88: mar | D88: 2005-03-01 | E88: 1203.6 | F88: 1229.11 | G88: 1163.69 | H88: 1180.59 | I88: 1874017200 | J88: 1180.59 | K88: =AVERAGE(OFFSET(H88,0,0,Overview!$C$1)) -> 1144.869333 | L88: =AVERAGE(OFFSET(H88,0,0,Overview!$C$2)) -> 1170.854286
C89: feb | D89: 2005-02-01 | E89: 1181.27 | F89: 1212.44 | G89: 1180.95 | H89: 1203.6 | I89: 1636467800 | J89: 1203.6 | K89: =AVERAGE(OFFSET(H89,0,0,Overview!$C$1)) -> 1140.291333 | L89: =AVERAGE(OFFSET(H89,0,0,Overview!$C$2)) -> 1159.947143
B90: 2005 | C90: jan | D90: 2005-01-03 | E90: 1211.92 | F90: 1217.8 | G90: 1163.75 | H90: 1181.27 | I90: 1658930000 | J90: 1181.27 | K90: =AVERAGE(OFFSET(H90,0,0,Overview!$C$1)) -> 1130.598 | L90: =AVERAGE(OFFSET(H90,0,0,Overview!$C$2)) -> 1145.392857
C91: dec | D91: 2004-12-01 | E91: 1173.78 | F91: 1217.33 | G91: 1173.78 | H91: 1211.92 | I91: 1449518100 | J91: 1211.92 | K91: =AVERAGE(OFFSET(H91,0,0,Overview!$C$1)) -> 1121.894 | L91: =AVERAGE(OFFSET(H91,0,0,Overview!$C$2)) -> 1139.617143
C92: nov | D92: 2004-11-01 | E92: 1130.2 | F92: 1188.46 | G92: 1127.6 | H92: 1173.82 | I92: 1524465700 | J92: 1173.82 | K92: =AVERAGE(OFFSET(H92,0,0,Overview!$C$1)) -> 1107.497333 | L92: =AVERAGE(OFFSET(H92,0,0,Overview!$C$2)) -> 1126.582857
C93: okt | D93: 2004-10-01 | E93: 1114.58 | F93: 1142.05 | G93: 1090.29 | H93: 1130.2 | I93: 1571990400 | J93: 1130.2 | K93: =AVERAGE(OFFSET(H93,0,0,Overview!$C$1)) -> 1096.443333 | L93: =AVERAGE(OFFSET(H93,0,0,Overview!$C$2)) -> 1117.08
C94: sep | D94: 2004-09-01 | E94: 1104.24 | F94: 1131.54 | G94: 1099.18 | H94: 1114.58 | I94: 1360850900 | J94: 1114.58 | K94: =AVERAGE(OFFSET(H94,0,0,Overview!$C$1)) -> 1087.117333 | L94: =AVERAGE(OFFSET(H94,0,0,Overview!$C$2)) -> 1116.51
C95: aug | D95: 2004-08-02 | E95: 1101.72 | F95: 1109.68 | G95: 1060.72 | H95: 1104.24 | I95: 1260227200 | J95: 1104.24 | K95: =AVERAGE(OFFSET(H95,0,0,Overview!$C$1)) -> 1077.778667 | L95: =AVERAGE(OFFSET(H95,0,0,Overview!$C$2)) -> 1120.847143
C96: jul | D96: 2004-07-01 | E96: 1140.84 | F96: 1140.84 | G96: 1078.78 | H96: 1101.72 | I96: 1456371400 | J96: 1101.72 | K96: =AVERAGE(OFFSET(H96,0,0,Overview!$C$1)) -> 1068.402 | L96: =AVERAGE(OFFSET(H96,0,0,Overview!$C$2)) -> 1124.688571
C97: jun | D97: 2004-06-01 | E97: 1120.68 | F97: 1146.34 | G97: 1113.32 | H97: 1140.84 | I97: 1381109500 | J97: 1140.84 | K97: =AVERAGE(OFFSET(H97,0,0,Overview!$C$1)) -> 1056.082 | L97: =AVERAGE(OFFSET(H97,0,0,Overview!$C$2)) -> 1126.145714
C98: maj | D98: 2004-05-03 | E98: 1107.3 | F98: 1127.74 | G98: 1076.32 | H98: 1120.68 | I98: 1524950000 | J98: 1120.68 | K98: =AVERAGE(OFFSET(H98,0,0,Overview!$C$1)) -> 1036.571333 | L98: =AVERAGE(OFFSET(H98,0,0,Overview!$C$2)) -> 1114.34
C99: apr | D99: 2004-04-01 | E99: 1126.21 | F99: 1150.57 | G99: 1107.23 | H99: 1107.3 | I99: 1583171400 | J99: 1107.3 | K99: =AVERAGE(OFFSET(H99,0,0,Overview!$C$1)) -> 1017.936 | L99: =AVERAGE(OFFSET(H99,0,0,Overview!$C$2)) -> 1104.344286
C100: mar | D100: 2004-03-01 | E100: 1144.94 | F100: 1163.23 | G100: 1087.16 | H100: 1126.21 | I100: 1528634700 | J100: 1126.21 | K100: =AVERAGE(OFFSET(H100,0,0,Overview!$C$1)) -> 1001.162667 | L100: =AVERAGE(OFFSET(H100,0,0,Overview!$C$2)) -> 1088.44
C101: feb | D101: 2004-02-02 | E101: 1131.13 | F101: 1158.98 | G101: 1124.44 | H101: 1144.94 | I101: 1554000000 | J101: 1144.94 | K101: =AVERAGE(OFFSET(H101,0,0,Overview!$C$1)) -> 984.7366667 | L101: =AVERAGE(OFFSET(H101,0,0,Overview!$C$2)) -> 1071.554286
B102: 2004 | C102: jan | D102: 2004-01-02 | E102: 1111.92 | F102: 1155.38 | G102: 1105.08 | H102: 1131.13 | I102: 1722750000 | J102: 1131.13 | K102: =AVERAGE(OFFSET(H102,0,0,Overview!$C$1)) -> 970.828 | L102: =AVERAGE(OFFSET(H102,0,0,Overview!$C$2)) -> 1049.464286
C103: dec | D103: 2003-12-01 | E103: 1058.2 | F103: 1112.56 | G103: 1053.41 | H103: 1111.92 | I103: 1312119500 | J103: 1111.92 | K103: =AVERAGE(OFFSET(H103,0,0,Overview!$C$1)) -> 954.47 | L103: =AVERAGE(OFFSET(H103,0,0,Overview!$C$2)) -> 1027.088571
C104: nov | D104: 2003-11-03 | E104: 1050.71 | F104: 1063.65 | G104: 1031.2 | H104: 1058.2 | I104: 1313181000 | J104: 1058.2 | K104: =AVERAGE(OFFSET(H104,0,0,Overview!$C$1)) -> 934.694 | L104: =AVERAGE(OFFSET(H104,0,0,Overview!$C$2)) -> 1005.898571
C105: okt | D105: 2003-10-01 | E105: 995.97 | F105: 1053.79 | G105: 995.97 | H105: 1050.71 | I105: 1469452100 | J105: 1050.71 | K105: =AVERAGE(OFFSET(H105,0,0,Overview!$C$1)) -> 925.2186667 | L105: =AVERAGE(OFFSET(H105,0,0,Overview!$C$2)) -> 985.7157143
C106: sep | D106: 2003-09-02 | E106: 1008.01 | F106: 1040.29 | G106: 990.36 | H106: 995.97 | I106: 1501457600 | J106: 995.97 | K106: =AVERAGE(OFFSET(H106,0,0,Overview!$C$1)) -> 915.946 | L106: =AVERAGE(OFFSET(H106,0,0,Overview!$C$2)) -> 956.7828571
C107: aug | D107: 2003-08-01 | E107: 990.31 | F107: 1011.01 | G107: 960.84 | H107: 1008.01 | I107: 1229836600 | J107: 1008.01 | K107: =AVERAGE(OFFSET(H107,0,0,Overview!$C$1)) -> 915.536 | L107: =AVERAGE(OFFSET(H107,0,0,Overview!$C$2)) -> 934.6657143 | M107: 915.536
C108: jul | D108: 2003-07-01 | E108: 974.5 | F108: 1015.41 | G108: 962.1 | H108: 990.31 | I108: 1507327200 | J108: 990.31 | K108: =AVERAGE(OFFSET(H108,0,0,Overview!$C$1)) -> 919.478 | L108: =AVERAGE(OFFSET(H108,0,0,Overview!$C$2)) -> 912.9071429
C109: jun | D109: 2003-06-02 | E109: 963.59 | F109: 1015.33 | G109: 963.59 | H109: 974.5 | I109: 1562219000 | J109: 974.5 | K109: =AVERAGE(OFFSET(H109,0,0,Overview!$C$1)) -> 925.252 | L109: =AVERAGE(OFFSET(H109,0,0,Overview!$C$2)) -> 897.1228571
C110: maj | D110: 2003-05-01 | E110: 916.92 | F110: 965.38 | G110: 902.83 | H110: 963.59 | I110: 1554328500 | J110: 963.59 | K110: =AVERAGE(OFFSET(H110,0,0,Overview!$C$1)) -> 936.778 | L110: =AVERAGE(OFFSET(H110,0,0,Overview!$C$2)) -> 891.6671429
C111: apr | D111: 2003-04-01 | E111: 848.18 | F111: 924.24 | G111: 847.85 | H111: 916.92 | I111: 1498005700 | J111: 916.92 | K111: =AVERAGE(OFFSET(H111,0,0,Overview!$C$1)) -> 946.3206667 | L111: =AVERAGE(OFFSET(H111,0,0,Overview!$C$2)) -> 880.5485714
C112: mar | D112: 2003-03-03 | E112: 841.15 | F112: 895.9 | G112: 788.9 | H112: 848.18 | I112: 1503596600 | J112: 848.18 | K112: =AVERAGE(OFFSET(H112,0,0,Overview!$C$1)) -> 960.5393333 | L112: =AVERAGE(OFFSET(H112,0,0,Overview!$C$2)) -> 866.0285714
C113: feb | D113: 2003-02-03 | E113: 855.7 | F113: 864.64 | G113: 806.29 | H113: 841.15 | I113: 1400452600 | J113: 841.15 | K113: =AVERAGE(OFFSET(H113,0,0,Overview!$C$1)) -> 980.5326667 | L113: =AVERAGE(OFFSET(H113,0,0,Overview!$C$2)) -> 875.7271429
B114: 2003 | C114: jan | D114: 2003-01-02 | E114: 879.82 | F114: 935.05 | G114: 840.34 | H114: 855.7 | I114: 1539433800 | J114: 855.7 | K114: =AVERAGE(OFFSET(H114,0,0,Overview!$C$1)) -> 1000.419333 | L114: =AVERAGE(OFFSET(H114,0,0,Overview!$C$2)) -> 885.7942857
C115: dec | D115: 2002-12-02 | E115: 936.31 | F115: 954.28 | G115: 869.45 | H115: 879.82 | I115: 1289625700 | J115: 879.82 | K115: =AVERAGE(OFFSET(H115,0,0,Overview!$C$1)) -> 1014.024667 | L115: =AVERAGE(OFFSET(H115,0,0,Overview!$C$2)) -> 904.9542857
C116: nov | D116: 2002-11-01 | E116: 885.76 | F116: 941.82 | G116: 872.05 | H116: 936.31 | I116: 1492221000 | J116: 936.31 | K116: =AVERAGE(OFFSET(H116,0,0,Overview!$C$1)) -> 1024.766 | L116: =AVERAGE(OFFSET(H116,0,0,Overview!$C$2)) -> 931.7142857
C117: okt | D117: 2002-10-01 | E117: 815.28 | F117: 907.44 | G117: 768.63 | H117: 885.76 | I117: 1717287300 | J117: 885.76 | K117: =AVERAGE(OFFSET(H117,0,0,Overview!$C$1)) -> 1037.917333 | L117: =AVERAGE(OFFSET(H117,0,0,Overview!$C$2)) -> 951.8014286
C118: sep | D118: 2002-09-03 | E118: 916.07 | F118: 924.02 | G118: 800.2 | H118: 815.28 | I118: 1472279000 | J118: 815.28 | K118: =AVERAGE(OFFSET(H118,0,0,Overview!$C$1)) -> 1059.615333 | L118: =AVERAGE(OFFSET(H118,0,0,Overview!$C$2)) -> 989.1771429
C119: aug | D119: 2002-08-01 | E119: 911.62 | F119: 965 | G119: 833.44 | H119: 916.07 | I119: 1374013600 | J119: 916.07 | K119: =AVERAGE(OFFSET(H119,0,0,Overview!$C$1)) -> 1086.888667 | L119: =AVERAGE(OFFSET(H119,0,0,Overview!$C$2)) -> 1030.812857
C120: jul | D120: 2002-07-01 | E120: 989.82 | F120: 994.46 | G120: 775.68 | H120: 911.62 | I120: 2012640000 | J120: 911.62 | K120: =AVERAGE(OFFSET(H120,0,0,Overview!$C$1)) -> 1109.538667 | L120: =AVERAGE(OFFSET(H120,0,0,Overview!$C$2)) -> 1061.402857
C121: jun | D121: 2002-06-03 | E121: 1067.14 | F121: 1070.74 | G121: 952.92 | H121: 989.82 | I121: 1604925500 | J121: 989.82 | K121: =AVERAGE(OFFSET(H121,0,0,Overview!$C$1)) -> 1132.061333 | L121: =AVERAGE(OFFSET(H121,0,0,Overview!$C$2)) -> 1095.182857
C122: maj | D122: 2002-05-01 | E122: 1076.92 | F122: 1106.59 | G122: 1048.96 | H122: 1067.14 | I122: 1281036300 | J122: 1067.14 | K122: =AVERAGE(OFFSET(H122,0,0,Overview!$C$1)) -> 1143.428667 | L122: =AVERAGE(OFFSET(H122,0,0,Overview!$C$2)) -> 1116.558571
C123: apr | D123: 2002-04-01 | E123: 1147.39 | F123: 1147.84 | G123: 1063.46 | H123: 1076.92 | I123: 1372613600 | J123: 1076.92 | K123: =AVERAGE(OFFSET(H123,0,0,Overview!$C$1)) -> 1154.948667 | L123: =AVERAGE(OFFSET(H123,0,0,Overview!$C$2)) -> 1115.507143
C124: mar | D124: 2002-03-01 | E124: 1106.73 | F124: 1173.94 | G124: 1106.73 | H124: 1147.39 | I124: 1385540000 | J124: 1147.39 | K124: =AVERAGE(OFFSET(H124,0,0,Overview!$C$1)) -> 1174.221333 | L124: =AVERAGE(OFFSET(H124,0,0,Overview!$C$2)) -> 1110.367143
C125: feb | D125: 2002-02-01 | E125: 1130.2 | F125: 1130.2 | G125: 1074.36 | H125: 1106.73 | I125: 1444200000 | J125: 1106.73 | K125: =AVERAGE(OFFSET(H125,0,0,Overview!$C$1)) -> 1185.747333 | L125: =AVERAGE(OFFSET(H125,0,0,Overview!$C$2)) -> 1108.394286
B126: 2002 | C126: jan | D126: 2002-01-02 | E126: 1148.08 | F126: 1176.97 | G126: 1081.66 | H126: 1130.2 | I126: 1490628500 | J126: 1130.2 | K126: =AVERAGE(OFFSET(H126,0,0,Overview!$C$1)) -> 1199.628667 | L126: =AVERAGE(OFFSET(H126,0,0,Overview!$C$2)) -> 1123.322857
C127: dec | D127: 2001-12-03 | E127: 1139.45 | F127: 1173.62 | G127: 1114.53 | H127: 1148.08 | I127: 1303608500 | J127: 1148.08 | K127: =AVERAGE(OFFSET(H127,0,0,Overview!$C$1)) -> 1219.575333 | L127: =AVERAGE(OFFSET(H127,0,0,Overview!$C$2)) -> 1136.777143
C128: nov | D128: 2001-11-01 | E128: 1059.78 | F128: 1163.38 | G128: 1054.31 | H128: 1139.45 | I128: 1317790400 | J128: 1139.45 | K128: =AVERAGE(OFFSET(H128,0,0,Overview!$C$1)) -> 1238.804 | L128: =AVERAGE(OFFSET(H128,0,0,Overview!$C$2)) -> 1152.168571
C129: okt | D129: 2001-10-01 | E129: 1040.94 | F129: 1110.61 | G129: 1026.76 | H129: 1059.78 | I129: 1361033900 | J129: 1059.78 | K129: =AVERAGE(OFFSET(H129,0,0,Overview!$C$1)) -> 1264.019333 | L129: =AVERAGE(OFFSET(H129,0,0,Overview!$C$2)) -> 1167.884286
C130: =IF(TEXT(D130,"MMM")=TEXT(D131,"MMM"),"",TEXT(D130,"MMM")) -> sep | D130: 2001-09-04 | E130: 1133.58 | F130: 1155.4 | G130: 944.75 | H130: 1040.94 | I130: 1777119300 | J130: 1040.94 | K130: =AVERAGE(OFFSET(H130,0,0,Overview!$C$1)) -> 1288.756 | L130: =AVERAGE(OFFSET(H130,0,0,Overview!$C$2)) -> 1182.248571
C131: aug | D131: 2001-08-01 | E131: 1211.23 | F131: 1226.27 | G131: 1124.87 | H131: 1133.58 | I131: 1055621700 | J131: 1133.58 | K131: =AVERAGE(OFFSET(H131,0,0,Overview!$C$1)) -> 1316.333333 | L131: =AVERAGE(OFFSET(H131,0,0,Overview!$C$2)) -> 1210.677143 | M131: =IF((L132<K132)*(L131>K131),K131,"") ->  | N131: =IF((L132>K132)*(L131<K131),K131,"") -> 
B132: =IF(YEAR(D132)=YEAR(D133),"",YEAR(D132)) ->  | C132: jul | D132: 2001-07-02 | E132: 1224.42 | F132: 1239.78 | G132: 1165.54 | H132: 1211.23 | I132: 1186805200 | J132: 1211.23 | K132: =AVERAGE(OFFSET(H132,0,0,Overview!$C$1)) -> 1335.468 | L132: =AVERAGE(OFFSET(H132,0,0,Overview!$C$2)) -> 1243.881429
C133: jun | D133: 2001-06-01 | E133: 1255.82 | F133: 1286.62 | G133: 1203.03 | H133: 1224.38 | I133: 1265732800 | J133: 1224.38 | K133: =AVERAGE(OFFSET(H133,0,0,Overview!$C$1)) -> 1351.548 | L133: =AVERAGE(OFFSET(H133,0,0,Overview!$C$2)) -> 1259.46
C134: maj | D134: 2001-05-01 | E134: 1249.46 | F134: 1315.93 | G134: 1232 | H134: 1255.82 | I134: 1170568100 | J134: 1255.82 | K134: =AVERAGE(OFFSET(H134,0,0,Overview!$C$1)) -> 1369.828 | L134: =AVERAGE(OFFSET(H134,0,0,Overview!$C$2)) -> 1272.398571
C135: apr | D135: 2001-04-02 | E135: 1160.33 | F135: 1269.3 | G135: 1091.99 | H135: 1249.46 | I135: 1333839500 | J135: 1249.46 | K135: =AVERAGE(OFFSET(H135,0,0,Overview!$C$1)) -> 1377.201333 | L135: =AVERAGE(OFFSET(H135,0,0,Overview!$C$2)) -> 1297.195714
C136: mar | D136: 2001-03-01 | E136: 1239.94 | F136: 1267.42 | G136: 1081.19 | H136: 1160.33 | I136: 1322155000 | J136: 1160.33 | K136: =AVERAGE(OFFSET(H136,0,0,Overview!$C$1)) -> 1386.868 | L136: =AVERAGE(OFFSET(H136,0,0,Overview!$C$2)) -> 1323.917143
C137: feb | D137: 2001-02-01 | E137: 1366.01 | F137: 1376.38 | G137: 1215.44 | H137: 1239.94 | I137: 1203668400 | J137: 1239.94 | K137: =AVERAGE(OFFSET(H137,0,0,Overview!$C$1)) -> 1407.462667 | L137: =AVERAGE(OFFSET(H137,0,0,Overview!$C$2)) -> 1374.967143
B138: 2001 | C138: jan | D138: 2001-01-02 | E138: 1320.28 | F138: 1383.37 | G138: 1274.62 | H138: 1366.01 | I138: 1386909500 | J138: 1366.01 | K138: =AVERAGE(OFFSET(H138,0,0,Overview!$C$1)) -> 1417.394 | L138: =AVERAGE(OFFSET(H138,0,0,Overview!$C$2)) -> 1402.237143
C139: dec | D139: 2000-12-01 | E139: 1314.95 | F139: 1389.05 | G139: 1254.07 | H139: 1320.28 | I139: 1232315000 | J139: 1320.28 | K139: =AVERAGE(OFFSET(H139,0,0,Overview!$C$1)) -> 1417.188667 | L139: =AVERAGE(OFFSET(H139,0,0,Overview!$C$2)) -> 1414.892857 | N139: 1417.188667
C140: nov | D140: 2000-11-01 | E140: 1429.4 | F140: 1438.46 | G140: 1294.9 | H140: 1314.95 | I140: 1034230000 | J140: 1314.95 | K140: =AVERAGE(OFFSET(H140,0,0,Overview!$C$1)) -> 1414.684 | L140: =AVERAGE(OFFSET(H140,0,0,Overview!$C$2)) -> 1429.224286
C141: okt | D141: 2000-10-02 | E141: 1436.52 | F141: 1454.82 | G141: 1305.79 | H141: 1429.4 | I141: 1241718100 | J141: 1429.4 | K141: =AVERAGE(OFFSET(H141,0,0,Overview!$C$1)) -> 1415.048 | L141: =AVERAGE(OFFSET(H141,0,0,Overview!$C$2)) -> 1448.864286
C142: sep | D142: 2000-09-01 | E142: 1517.68 | F142: 1530.09 | G142: 1419.44 | H142: 1436.51 | I142: 1101770000 | J142: 1436.51 | K142: =AVERAGE(OFFSET(H142,0,0,Overview!$C$1)) -> 1408.336 | L142: =AVERAGE(OFFSET(H142,0,0,Overview!$C$2)) -> 1458.747143
C143: aug | D143: 2000-08-01 | E143: 1430.83 | F143: 1525.21 | G143: 1425.43 | H143: 1517.68 | I143: 931317300 | J143: 1517.68 | K143: =AVERAGE(OFFSET(H143,0,0,Overview!$C$1)) -> 1404.082667 | L143: =AVERAGE(OFFSET(H143,0,0,Overview!$C$2)) -> 1448.734286
C144: jul | D144: 2000-07-03 | E144: 1454.6 | F144: 1517.32 | G144: 1413.89 | H144: 1430.83 | I144: 1002085000 | J144: 1430.83 | K144: =AVERAGE(OFFSET(H144,0,0,Overview!$C$1)) -> 1389.693333 | L144: =AVERAGE(OFFSET(H144,0,0,Overview!$C$2)) -> 1431.131429
C145: jun | D145: 2000-06-01 | E145: 1420.6 | F145: 1488.93 | G145: 1420.6 | H145: 1454.6 | I145: 1054454500 | J145: 1454.6 | K145: =AVERAGE(OFFSET(H145,0,0,Overview!$C$1)) -> 1383.316667 | L145: =AVERAGE(OFFSET(H145,0,0,Overview!$C$2)) -> 1436.62
C146: maj | D146: 2000-05-01 | E146: 1452.43 | F146: 1481.51 | G146: 1361.09 | H146: 1420.6 | I146: 948127200 | J146: 1420.6 | K146: =AVERAGE(OFFSET(H146,0,0,Overview!$C$1)) -> 1372.101333 | L146: =AVERAGE(OFFSET(H146,0,0,Overview!$C$2)) -> 1427.235714
C147: apr | D147: 2000-04-03 | E147: 1498.58 | F147: 1527.19 | G147: 1339.4 | H147: 1452.43 | I147: 1110055700 | J147: 1452.43 | K147: =AVERAGE(OFFSET(H147,0,0,Overview!$C$1)) -> 1359.95 | L147: =AVERAGE(OFFSET(H147,0,0,Overview!$C$2)) -> 1418.997143
C148: mar | D148: 2000-03-01 | E148: 1366.42 | F148: 1552.87 | G148: 1346.62 | H148: 1498.58 | I148: 1190591300 | J148: 1498.58 | K148: =AVERAGE(OFFSET(H148,0,0,Overview!$C$1)) -> 1348.430667 | L148: =AVERAGE(OFFSET(H148,0,0,Overview!$C$2)) -> 1394.751429
C149: feb | D149: 2000-02-01 | E149: 1394.46 | F149: 1444.55 | G149: 1325.07 | H149: 1366.42 | I149: 1105815000 | J149: 1366.42 | K149: =AVERAGE(OFFSET(H149,0,0,Overview!$C$1)) -> 1330.474 | L149: =AVERAGE(OFFSET(H149,0,0,Overview!$C$2)) -> 1369.298571
B150: 2000 | C150: jan | D150: 2000-01-03 | E150: 1469.25 | F150: 1478 | G150: 1350.14 | H150: 1394.46 | I150: 1124410000 | J150: 1394.46 | K150: =AVERAGE(OFFSET(H150,0,0,Overview!$C$1)) -> 1316.954667 | L150: =AVERAGE(OFFSET(H150,0,0,Overview!$C$2)) -> 1363.912857
C151: dec | D151: 1999-12-01 | E151: 1388.91 | F151: 1473.1 | G151: 1387.38 | H151: 1469.25 | I151: 909760900 | J151: 1469.25 | K151: =AVERAGE(OFFSET(H151,0,0,Overview!$C$1)) -> 1297.235333 | L151: =AVERAGE(OFFSET(H151,0,0,Overview!$C$2)) -> 1360.805714
C152: nov | D152: 1999-11-01 | E152: 1362.93 | F152: 1425.31 | G152: 1346.41 | H152: 1388.91 | I152: 920777100 | J152: 1388.91 | K152: =AVERAGE(OFFSET(H152,0,0,Overview!$C$1)) -> 1267.086 | L152: =AVERAGE(OFFSET(H152,0,0,Overview!$C$2)) -> 1336.89
C153: okt | D153: 1999-10-01 | E153: 1282.71 | F153: 1373.17 | G153: 1233.7 | H153: 1362.93 | I153: 950119000 | J153: 1362.93 | K153: =AVERAGE(OFFSET(H153,0,0,Overview!$C$1)) -> 1238.310667 | L153: =AVERAGE(OFFSET(H153,0,0,Overview!$C$2)) -> 1329.214286
C154: sep | D154: 1999-09-01 | E154: 1320.41 | F154: 1361.39 | G154: 1256.26 | H154: 1282.71 | I154: 831252300 | J154: 1282.71 | K154: =AVERAGE(OFFSET(H154,0,0,Overview!$C$1)) -> 1222.16 | L154: =AVERAGE(OFFSET(H154,0,0,Overview!$C$2)) -> 1318.277143
C155: aug | D155: 1999-08-02 | E155: 1328.72 | F155: 1382.84 | G155: 1267.73 | H155: 1320.41 | I155: 758193100 | J155: 1320.41 | K155: =AVERAGE(OFFSET(H155,0,0,Overview!$C$1)) -> 1212.235333 | L155: =AVERAGE(OFFSET(H155,0,0,Overview!$C$2)) -> 1311.937143
C156: jul | D156: 1999-07-01 | E156: 1372.71 | F156: 1420.33 | G156: 1328.49 | H156: 1328.72 | I156: 765225200 | J156: 1328.72 | K156: =AVERAGE(OFFSET(H156,0,0,Overview!$C$1)) -> 1196.929333 | L156: =AVERAGE(OFFSET(H156,0,0,Overview!$C$2)) -> 1306.112857
C157: jun | D157: 1999-06-01 | E157: 1301.84 | F157: 1372.93 | G157: 1277.47 | H157: 1372.71 | I157: 781644000 | J157: 1372.71 | K157: =AVERAGE(OFFSET(H157,0,0,Overview!$C$1)) -> 1182.464667 | L157: =AVERAGE(OFFSET(H157,0,0,Overview!$C$2)) -> 1291.9
C158: maj | D158: 1999-05-03 | E158: 1335.18 | F158: 1375.98 | G158: 1277.31 | H158: 1301.84 | I158: 826511000 | J158: 1301.84 | K158: =AVERAGE(OFFSET(H158,0,0,Overview!$C$1)) -> 1164.400667 | L158: =AVERAGE(OFFSET(H158,0,0,Overview!$C$2)) -> 1262.031429
C159: apr | D159: 1999-04-01 | E159: 1286.37 | F159: 1371.56 | G159: 1282.56 | H159: 1335.18 | I159: 926652300 | J159: 1335.18 | K159: =AVERAGE(OFFSET(H159,0,0,Overview!$C$1)) -> 1147.567333 | L159: =AVERAGE(OFFSET(H159,0,0,Overview!$C$2)) -> 1233.007143
C160: mar | D160: 1999-03-01 | E160: 1238.33 | F160: 1323.82 | G160: 1216.03 | H160: 1286.37 | I160: 822904300 | J160: 1286.37 | K160: =AVERAGE(OFFSET(H160,0,0,Overview!$C$1)) -> 1123.907333 | L160: =AVERAGE(OFFSET(H160,0,0,Overview!$C$2)) -> 1187.554286
C161: feb | D161: 1999-02-01 | E161: 1279.64 | F161: 1283.84 | G161: 1211.89 | H161: 1238.33 | I161: 807392600 | J161: 1238.33 | K161: =AVERAGE(OFFSET(H161,0,0,Overview!$C$1)) -> 1102.844667 | L161: =AVERAGE(OFFSET(H161,0,0,Overview!$C$2)) -> 1140.541429
B162: 1999 | C162: jan | D162: 1999-01-04 | E162: 1229.23 | F162: 1280.37 | G162: 1205.46 | H162: 1279.64 | I162: 901605200 | J162: 1279.64 | K162: =AVERAGE(OFFSET(H162,0,0,Overview!$C$1)) -> 1083.982667 | L162: =AVERAGE(OFFSET(H162,0,0,Overview!$C$2)) -> 1123.732857
C163: dec | D163: 1998-12-01 | E163: 1163.63 | F163: 1244.93 | G163: 1136.89 | H163: 1229.23 | I163: 722756800 | J163: 1229.23 | K163: =AVERAGE(OFFSET(H163,0,0,Overview!$C$1)) -> 1059.648 | L163: =AVERAGE(OFFSET(H163,0,0,Overview!$C$2)) -> 1102.904286
C164: nov | D164: 1998-11-02 | E164: 1098.67 | F164: 1192.97 | G164: 1098.67 | H164: 1163.63 | I164: 706959000 | J164: 1163.63 | K164: =AVERAGE(OFFSET(H164,0,0,Overview!$C$1)) -> 1040.851333 | L164: =AVERAGE(OFFSET(H164,0,0,Overview!$C$2)) -> 1083.131429
C165: okt | D165: 1998-10-01 | E165: 1017.01 | F165: 1103.78 | G165: 923.32 | H165: 1098.67 | I165: 853938600 | J165: 1098.67 | K165: =AVERAGE(OFFSET(H165,0,0,Overview!$C$1)) -> 1023.240667 | L165: =AVERAGE(OFFSET(H165,0,0,Overview!$C$2)) -> 1075.72
C166: sep | D166: 1998-09-01 | E166: 957.28 | F166: 1066.11 | G166: 939.98 | H166: 1017.01 | I166: 834008500 | J166: 1017.01 | K166: =AVERAGE(OFFSET(H166,0,0,Overview!$C$1)) -> 1013.616667 | L166: =AVERAGE(OFFSET(H166,0,0,Overview!$C$2)) -> 1076.16
C167: aug | D167: 1998-08-03 | E167: 1120.67 | F167: 1121.79 | G167: 957.28 | H167: 957.28 | I167: 761383300 | J167: 957.28 | K167: =AVERAGE(OFFSET(H167,0,0,Overview!$C$1)) -> 1004.825333 | L167: =AVERAGE(OFFSET(H167,0,0,Overview!$C$2)) -> 1080.778571
C168: jul | D168: 1998-07-01 | E168: 1133.84 | F168: 1190.58 | G168: 1114.3 | H168: 1120.67 | I168: 674577700 | J168: 1120.67 | K168: =AVERAGE(OFFSET(H168,0,0,Overview!$C$1)) -> 997.5586667 | L168: =AVERAGE(OFFSET(H168,0,0,Overview!$C$2)) -> 1084.064286
C169: jun | D169: 1998-06-01 | E169: 1090.82 | F169: 1145.15 | G169: 1074.67 | H169: 1133.84 | I169: 650416800 | J169: 1133.84 | K169: =AVERAGE(OFFSET(H169,0,0,Overview!$C$1)) -> 976.27 | L169: =AVERAGE(OFFSET(H169,0,0,Overview!$C$2)) -> 1062.601429
C170: maj | D170: 1998-05-01 | E170: 1111.75 | F170: 1130.52 | G170: 1074.39 | H170: 1090.82 | I170: 601696000 | J170: 1090.82 | K170: =AVERAGE(OFFSET(H170,0,0,Overview!$C$1)) -> 951.1553333 | L170: =AVERAGE(OFFSET(H170,0,0,Overview!$C$2)) -> 1037.11
C171: apr | D171: 1998-04-01 | E171: 1101.75 | F171: 1132.98 | G171: 1076.7 | H171: 1111.75 | I171: 683412300 | J171: 1111.75 | K171: =AVERAGE(OFFSET(H171,0,0,Overview!$C$1)) -> 931.1553333 | L171: =AVERAGE(OFFSET(H171,0,0,Overview!$C$2)) -> 1011.938571
C172: mar | D172: 1998-03-02 | E172: 1049.34 | F172: 1113.07 | G172: 1030.87 | H172: 1101.75 | I172: 654296300 | J172: 1101.75 | K172: =AVERAGE(OFFSET(H172,0,0,Overview!$C$1)) -> 909.4493333 | L172: =AVERAGE(OFFSET(H172,0,0,Overview!$C$2)) -> 988.4428571
C173: feb | D173: 1998-02-02 | E173: 980.28 | F173: 1051.66 | G173: 980.28 | H173: 1049.34 | I173: 643738400 | J173: 1049.34 | K173: =AVERAGE(OFFSET(H173,0,0,Overview!$C$1)) -> 885.382 | L173: =AVERAGE(OFFSET(H173,0,0,Overview!$C$2)) -> 959.5457143
B174: 1998 | C174: jan | D174: 1998-01-02 | E174: 970.43 | F174: 992.65 | G174: 912.83 | H174: 980.28 | I174: 667360500 | J174: 980.28 | K174: =AVERAGE(OFFSET(H174,0,0,Overview!$C$1)) -> 865.894 | L174: =AVERAGE(OFFSET(H174,0,0,Overview!$C$2)) -> 945.97
C175: dec | D175: 1997-12-01 | E175: 955.4 | F175: 986.25 | G175: 924.92 | H175: 970.43 | I175: 564825400 | J175: 970.43 | K175: =AVERAGE(OFFSET(H175,0,0,Overview!$C$1)) -> 847.56 | L175: =AVERAGE(OFFSET(H175,0,0,Overview!$C$2)) -> 932.3785714
C176: nov | D176: 1997-11-03 | E176: 914.62 | F176: 964.55 | G176: 900.61 | H176: 955.4 | I176: 545404700 | J176: 955.4 | K176: =AVERAGE(OFFSET(H176,0,0,Overview!$C$1)) -> 828.6866667 | L176: =AVERAGE(OFFSET(H176,0,0,Overview!$C$2)) -> 914.9285714
C177: okt | D177: 1997-10-01 | E177: 947.28 | F177: 983.12 | G177: 855.27 | H177: 914.62 | I177: 637188200 | J177: 914.62 | K177: =AVERAGE(OFFSET(H177,0,0,Overview!$C$1)) -> 808.4593333 | L177: =AVERAGE(OFFSET(H177,0,0,Overview!$C$2)) -> 892.92
C178: sep | D178: 1997-09-02 | E178: 899.47 | F178: 960.59 | G178: 899.47 | H178: 947.28 | I178: 570023800 | J178: 947.28 | K178: =AVERAGE(OFFSET(H178,0,0,Overview!$C$1)) -> 790.148 | L178: =AVERAGE(OFFSET(H178,0,0,Overview!$C$2)) -> 870.42
C179: aug | D179: 1997-08-01 | E179: 954.29 | F179: 964.17 | G179: 893.34 | H179: 899.47 | I179: 524762300 | J179: 899.47 | K179: =AVERAGE(OFFSET(H179,0,0,Overview!$C$1)) -> 771.7046667 | L179: =AVERAGE(OFFSET(H179,0,0,Overview!$C$2)) -> 848.0685714
C180: jul | D180: 1997-07-01 | E180: 885.14 | F180: 957.73 | G180: 884.54 | H180: 954.31 | I180: 568452200 | J180: 954.31 | K180: =AVERAGE(OFFSET(H180,0,0,Overview!$C$1)) -> 756.348 | L180: =AVERAGE(OFFSET(H180,0,0,Overview!$C$2)) -> 831.8814286
C181: jun | D181: 1997-06-02 | E181: 848.28 | F181: 902.09 | G181: 838.82 | H181: 885.14 | I181: 543785200 | J181: 885.14 | K181: =AVERAGE(OFFSET(H181,0,0,Overview!$C$1)) -> 736.3386667 | L181: =AVERAGE(OFFSET(H181,0,0,Overview!$C$2)) -> 801.3714286
C182: maj | D182: 1997-05-01 | E182: 801.34 | F182: 851.87 | G182: 793.21 | H182: 848.28 | I182: 506850000 | J182: 848.28 | K182: =AVERAGE(OFFSET(H182,0,0,Overview!$C$1)) -> 720.3626667 | L182: =AVERAGE(OFFSET(H182,0,0,Overview!$C$2)) -> 783.0685714
C183: apr | D183: 1997-04-01 | E183: 757.12 | F183: 804.13 | G183: 733.54 | H183: 801.34 | I183: 500497700 | J183: 801.34 | K183: =AVERAGE(OFFSET(H183,0,0,Overview!$C$1)) -> 706.506 | L183: =AVERAGE(OFFSET(H183,0,0,Overview!$C$2)) -> 762.6385714
C184: mar | D184: 1997-03-03 | E184: 790.82 | F184: 814.9 | G184: 756.13 | H184: 757.12 | I184: 533832000 | J184: 757.12 | K184: =AVERAGE(OFFSET(H184,0,0,Overview!$C$1)) -> 695.4846667 | L184: =AVERAGE(OFFSET(H184,0,0,Overview!$C$2)) -> 746.3514286
C185: feb | D185: 1997-02-03 | E185: 786.16 | F185: 817.68 | G185: 773.43 | H185: 790.82 | I185: 538116300 | J185: 790.82 | K185: =AVERAGE(OFFSET(H185,0,0,Overview!$C$1)) -> 686.072 | L185: =AVERAGE(OFFSET(H185,0,0,Overview!$C$2)) -> 731.3328571
B186: 1997 | C186: jan | D186: 1997-01-02 | E186: 740.74 | F186: 794.67 | G186: 729.55 | H186: 786.16 | I186: 555199000 | J186: 786.16 | K186: =AVERAGE(OFFSET(H186,0,0,Overview!$C$1)) -> 673.7086667 | L186: =AVERAGE(OFFSET(H186,0,0,Overview!$C$2)) -> 709.78
C187: dec | D187: 1996-12-02 | E187: 757.02 | F187: 761.75 | G187: 716.69 | H187: 740.74 | I187: 451853800 | J187: 740.74 | K187: =AVERAGE(OFFSET(H187,0,0,Overview!$C$1)) -> 660.0646667 | L187: =AVERAGE(OFFSET(H187,0,0,Overview!$C$2)) -> 693.2757143
C188: nov | D188: 1996-11-01 | E188: 705.27 | F188: 762.12 | G188: 701.3 | H188: 757.02 | I188: 438942000 | J188: 757.02 | K188: =AVERAGE(OFFSET(H188,0,0,Overview!$C$1)) -> 649.6426667 | L188: =AVERAGE(OFFSET(H188,0,0,Overview!$C$2)) -> 683.0442857
C189: okt | D189: 1996-10-01 | E189: 687.31 | F189: 714.1 | G189: 684.44 | H189: 705.27 | I189: 442891700 | J189: 705.27 | K189: =AVERAGE(OFFSET(H189,0,0,Overview!$C$1)) -> 636.6333333 | L189: =AVERAGE(OFFSET(H189,0,0,Overview!$C$2)) -> 668.3514286
C190: sep | D190: 1996-09-03 | E190: 651.99 | F190: 690.88 | G190: 643.97 | H190: 687.33 | I190: 422632000 | J190: 687.33 | K190: =AVERAGE(OFFSET(H190,0,0,Overview!$C$1)) -> 627.086 | L190: =AVERAGE(OFFSET(H190,0,0,Overview!$C$2)) -> 659.8128571
C191: aug | D191: 1996-08-01 | E191: 639.95 | F191: 670.68 | G191: 639.49 | H191: 651.99 | I191: 347213600 | J191: 651.99 | K191: =AVERAGE(OFFSET(H191,0,0,Overview!$C$1)) -> 617.5806667 | L191: =AVERAGE(OFFSET(H191,0,0,Overview!$C$2)) -> 653.1128571
C192: jul | D192: 1996-07-01 | E192: 670.63 | F192: 675.88 | G192: 605.88 | H192: 639.95 | I192: 420610000 | J192: 639.95 | K192: =AVERAGE(OFFSET(H192,0,0,Overview!$C$1)) -> 609.6746667 | L192: =AVERAGE(OFFSET(H192,0,0,Overview!$C$2)) -> 650.8314286
C193: jun | D193: 1996-06-03 | E193: 669.12 | F193: 680.32 | G193: 658.75 | H193: 670.63 | I193: 420065000 | J193: 670.63 | K193: =AVERAGE(OFFSET(H193,0,0,Overview!$C$1)) -> 601.3253333 | L193: =AVERAGE(OFFSET(H193,0,0,Overview!$C$2)) -> 647.4
C194: =IF(TEXT(D194,"MMM")=TEXT(D195,"MMM"),"",TEXT(D194,"MMM")) -> maj | D194: 1996-05-01 | E194: 654.17 | F194: 681.1 | G194: 630.07 | H194: 669.12 | I194: 421495000 | J194: 669.12 | K194: =AVERAGE(OFFSET(H194,0,0,Overview!$C$1)) -> 589.9973333 | L194: =AVERAGE(OFFSET(H194,0,0,Overview!$C$2)) -> 638.0771429
C195: apr | D195: 1996-04-01 | E195: 645.5 | F195: 656.68 | G195: 624.14 | H195: 654.17 | I195: 441379500 | J195: 654.17 | K195: =AVERAGE(OFFSET(H195,0,0,Overview!$C$1)) -> 577.882 | L195: =AVERAGE(OFFSET(H195,0,0,Overview!$C$2)) -> 625.56 | M195: =IF((L196<K196)*(L195>K195),K195,"") ->  | N195: =IF((L196>K196)*(L195<K195),K195,"") -> 
B196: =IF(YEAR(D196)=YEAR(D197),"",YEAR(D196)) ->  | C196: mar | D196: 1996-03-01 | E196: 640.43 | F196: 656.97 | G196: 627.63 | H196: 645.5 | I196: 447510000 | J196: 645.5 | K196: =AVERAGE(OFFSET(H196,0,0,Overview!$C$1)) -> 565.632 | L196: =AVERAGE(OFFSET(H196,0,0,Overview!$C$2)) -> 615.5942857
C197: feb | D197: 1996-02-01 | E197: 636.02 | F197: 664.23 | G197: 633.71 | H197: 640.43 | I197: 460156500 | J197: 640.43 | K197: =AVERAGE(OFFSET(H197,0,0,Overview!$C$1)) -> 553.2166667 | L197: =AVERAGE(OFFSET(H197,0,0,Overview!$C$2)) -> 603.6485714
B198: 1996 | C198: jan | D198: 1996-01-02 | E198: 615.93 | F198: 636.18 | G198: 597.29 | H198: 636.02 | I198: 439102700 | J198: 636.02 | K198: =AVERAGE(OFFSET(H198,0,0,Overview!$C$1)) -> 540.7673333 | L198: =AVERAGE(OFFSET(H198,0,0,Overview!$C$2)) -> 592.4528571
C199: dec | D199: 1995-12-01 | E199: 605.37 | F199: 622.88 | G199: 605.05 | H199: 615.93 | I199: 400939500 | J199: 615.93 | K199: =AVERAGE(OFFSET(H199,0,0,Overview!$C$1)) -> 529.856 | L199: =AVERAGE(OFFSET(H199,0,0,Overview!$C$2)) -> 579.4142857
C200: nov | D200: 1995-11-01 | E200: 581.5 | F200: 608.69 | G200: 581.04 | H200: 605.37 | I200: 382961900 | J200: 605.37 | K200: =AVERAGE(OFFSET(H200,0,0,Overview!$C$1)) -> 519.6413333 | L200: =AVERAGE(OFFSET(H200,0,0,Overview!$C$2)) -> 567.6242857
... 800 more rows
